Workbook

Sheet Список
A1: № | B1: УПРАВЛЕНИЕ | D1: Отдел управления персоналом | F1: БУХГАЛТЕРИЯ | H1: Отдел материально-технического снабжения | J1: Отдел автоматизации систем управления | L1: Производственно-технический отдел | N1: Сметно-договорной отдел | P1: Автотранспортный участок | R1: Отдел охраны труда и техники безопасности | T1: Административно-хозяйственный участок | V1: Томский электромонтажный участок | X1: Б электромонтажный участок
A2: 1 | X2: Бабковский Константин Сергеевич | Y2: Электромонтажник 3 разряда
A3: 2 | X3: Батенев Владимир Николаевич | Y3: Электромонтажник 3 разряда
A4: 3 | X4: Блиц Евгений Иванович | Y4: Электромонтажник 3 разряда
A5: 4 | X5: Бубнов Павел Петрович | Y5: Электромонтажник 3 разряда
A6: 5 | X6: Верле Яков Эмануилович | Y6: Электромонтажник 5 разряда
A7: 6 | X7: Витовтов Рустам Владимирович | Y7: Электромонтажник 3 разряда
A8: 7 | X8: Возжов Алексей Сергеевич | Y8: Электромонтажник 3 разряда
A9: 8 | X9: Вяткин Владимир Сергеевич | Y9: Электромонтажник 3 разряда
A10: 9 | X10: Гвоздева Людмила Григорьевна | Y10: Электромонтажник 5 разряда
A11: 10 | X11: Гридасов Роман Андреевич | Y11: Электромонтажник 3 разряда
A12: 11 | X12: Дударев Александр Васильевич | Y12: Электромонтажник 3 разряда
A13: 12 | X13: Елисов Виталий Юрьевич | Y13: Мастер участка
A14: 13 | X14: Зайцев Олег Валентинович | Y14: Специалист по подготовке производства
A15: 14 | X15: Зюзин Алексей Артурович | Y15: Электромонтажник 4 разряда
A16: 15 | X16: Иванов Владимир Аркадьевич | Y16: Электромонтажник 3 разряда
A17: 16 | X17: Кагитина Любовь Ивановна | Y17: Уборщик служебных помещений
A18: 17 | X18: Капаев Сергей Александрович | Y18: Электромонтажник 5 разряда
A19: 18 | X19: Капаева Татьяна Анатольевна | Y19: Электромонтажник 3 разряда
A20: 19 | X20: Керносов Антон Сергеевич | Y20: Электромонтажник 3 разряда
A21: 20 | X21: Клочков Николай Геннадьевич | Y21: Электромонтажник 3 разряда
A22: 21 | X22: Ковылин Александр Алексеевич | Y22: Электромонтажник 3 разряда
A23: 22 | X23: Кононенко Александр Викторович | Y23: Мастер участка
A24: 23 | X24: Красильников Роман Викторович | Y24: Электромонтажник 4 разряда
A25: 24 | X25: Кузнецов Александр Николаевич | Y25: Начальник участка
A26: 25 | X26: Кузнецова Наталья Викторовна | Y26: Офис-менеджер
A27: 26 | X27: Кузовлев Николай Николаевич | Y27: Электромонтажник 4 разряда
A28: 27 | X28: Кузьмин Виталий Анатольевич | Y28: Электромонтажник 5 разряда
A29: 28 | X29: Курганский Алексей Семенович | Y29: Электромонтажник 4 разряда
A30: 29 | X30: Кутищев Алексей Павлович | Y30: Электромонтажник 3 разряда
A31: 30 | X31: Мартынюк Владимир Николаевич | Y31: Электромонтажник 5 разряда
A32: 31 | X32: Матюхин Анатолий Афанасьевич | Y32: Электромонтажник 5 разряда
A33: 32 | X33: Матюхина Галина Александровна | Y33: Электромонтажник 5 разряда
A34: 33 | X34: Метелкин Сергей Львович | Y34: Электромонтажник 5 разряда
A35: 34 | X35: Мильян Леонид Иванович | Y35: Электромонтажник 5 разряда
A36: 35 | X36: Милюков Юрий Виссарионович | Y36: Мастер участка
A37: 36 | X37: Петренко Юрий Константинович | Y37: Монтажник по монтажу стальных и железобетонных конструкций 3 разряда
A38: 37 | X38: Потехин Дмитрий Иванович | Y38: Производитель работ (прораб)
A39: 38 | X39: Розенбах Денис Сергеевич | Y39: Электромонтажник 3 разряда
A40: 39 | X40: Рытов Игорь Викторович | Y40: Монтажник по монтажу стальных и железобетонных конструкций 4 разряда
A41: 40 | X41: Сергеенко Максим Владимирович | Y41: Электромонтажник 5 разряда
A42: 41 | X42: Симулин Сергей Владимирович | Y42: Электромонтажник 5 разряда
A43: 42 | X43: Сурков Владимир Владимирович | Y43: Монтажник по монтажу стальных и железобетонных конструкций 3 разряда
A44: 43 | X44: Сусляков Сергей Александрович | Y44: Электромонтажник 3 разряда
A45: 44 | X45: Суханов Дмитрий Викторович | Y45: Электромонтажник 5 разряда
A46: 45 | X46: Тамбов Роман Евгеньевич | Y46: Монтажник по монтажу стальных и железобетонных конструкций 3 разряда
A47: 46 | X47: Терентьев Василий Владимирович | Y47: Электромонтажник 5 разряда
A48: 47 | X48: Уголев Дмитрий Викторович | Y48: Электромонтажник 3 разряда
A49: 48 | X49: Шестаков Андрей Иванович | Y49: Электромонтажник 4 разряда
A50: 49 | X50: Шмыков Виктор Васильевич | Y50: Электромонтажник 5 разряда
A51: 50 | X51: Эндерс Валерий Давыдович | Y51: Электромонтажник 4 разряда
A52: 51 | X52: Янкин Ярослав Александрович | Y52: Электромонтажник 3 разряда
A53: 52
A54: 53
A55: 54
A56: 55
A57: 56
A58: 57
A59: 58
A60: 59
A61: 60
A62: 61
A63: 62
A64: 63
A65: 64
A66: 65
A67: 66
A68: 67
A69: 68
A70: 69
A71: 70
B72: =COUNTA(B2:B71) -> 0 | D72: =COUNTA(D2:D71) -> 0 | F72: =COUNTA(F2:F71) -> 0 | H72: =COUNTA(H2:H71) -> 0 | J72: =COUNTA(J2:J71) -> 0 | L72: =COUNTA(L2:L71) -> 0 | N72: =COUNTA(N2:N71) -> 0 | P72: =COUNTA(P2:P71) -> 0 | R72: =COUNTA(R2:R71) -> 0 | T72: =COUNTA(T2:T71) -> 0 | V72: =COUNTA(V2:V71) -> 0 | X72: =COUNTA(X2:X71) -> 51
B75: Год | C75: 2012
B77: Объекты | C77: Сокращенное наименование

Sheet Табель БЭМУ
F5: 1 | G5: 2 | H5: 3 | I5: 4 | J5: 5 | K5: 6 | L5: 7 | M5: 8 | N5: 9 | O5: 10 | P5: 11 | Q5: 12 | R5: 13 | S5: 14 | T5: 15 | U5: 16 | V5: 17 | W5: 18 | X5: 19 | Y5: 20 | Z5: 21 | AA5: 22 | AB5: 23 | AC5: 24 | AD5: 25 | AE5: 26 | AF5: 27 | AG5: 28 | AH5: 29 | AI5: 30 | AJ5: 31
A7: № | B7: Ф.И.О | C7: Должность | E7: Январь | F7: =DATE(Год,1,F5) -> 2012-01-01 | G7: 2012-01-02 | H7: 2012-01-03 | I7: 2012-01-04 | J7: 2012-01-05 | K7: 2012-01-06 | L7: 2012-01-07 | M7: 2012-01-08 | N7: 2012-01-09 | O7: 2012-01-10 | P7: 2012-01-11 | Q7: 2012-01-12 | R7: 2012-01-13 | S7: 2012-01-14 | T7: 2012-01-15 | U7: 2012-01-16 | V7: 2012-01-17 | W7: 2012-01-18 | X7: 2012-01-19 | Y7: 2012-01-20 | Z7: 2012-01-21 | AA7: 2012-01-22 | AB7: 2012-01-23 | AC7: 2012-01-24 | AD7: 2012-01-25 | AE7: 2012-01-26 | AF7: 2012-01-27 | AG7: 2012-01-28 | AH7: 2012-01-29 | AI7: 2012-01-30 | AJ7: 2012-01-31 | AK7: ="К-во раб.дней (Норма -"&NETWORKDAYS(F7,EOMONTH(F7,0),Праздники)&")" -> К-во раб.дней (Норма -16) | AL7: ="К-во часов (Норма -"&PRODUCT(NETWORKDAYS(F7,EOMONTH(F7,0),Праздники),8)&")" -> К-во часов (Норма -128) | AM7: Заработная плата без НДФЛ | AN7: Заработная плата с НДФЛ | AQ7: Д н и н е я в о к
AQ8: выходные | AR8: отпускные | AS8: прогул | AT8: командировка | AU8: административные | AV8: больничные
B10: Б электромонтажный участок
A11: 1 | B11: =INDEX(Список!$B$2:$AZ$71,$A11,MATCH($B$10,отд,0)) -> Бабковский Константин Сергеевич | C11: =INDEX(Список!$B$2:$AZ$71,$A11,MATCH($B$10,отд,0)+1) -> Электромонтажник 3 разряда | D11: Факт | F11: в | G11: 8 | H11: 8 | I11: 8 | J11: 8 | K11: 8 | L11: в | M11: в | N11: 8 | O11: 8 | S11: в | T11: в | V11: к(8) | W11: к(8) | X11: к(8) | Y11: к(8) | Z11: в | AA11: в | AB11: 8 | AC11: 8 | AD11: 8 | AE11: 8 | AF11: 8 | AG11: в | AH11: в | AK11: =COUNTIF(F11:AJ11,">=4")+COUNTIF(F11:AJ11,"к*") -> 16 | AL11: =IF(ISNA(SUM(ИЗВЛЕЧЬЦЕЛЫЕ(F11:AJ11))),0,SUM(ИЗВЛЕЧЬЦЕЛЫЕ(F11:AJ11))) -> 128 | AM11: 11111 | AN11: =AM11*0.87 -> 9666.57 | AQ11: =COUNTIF(F11:AJ11,"в") -> 9 | AR11: =COUNTIF(F11:AJ11,"о") -> 0 | AS11: =COUNTIF(F11:AJ11,"п") -> 0 | AT11: =COUNTIF(F11:AJ11,"к*") -> 4 | AU11: =COUNTIF(F11:AJ11,"а") -> 0 | AV11: =COUNTIF(F11:AJ11,"б") -> 0
D12: Объект | F12: бв | G12: бв | H12: бв | I12: бв | J12: бв | K12: бв | L12: бв | M12: бв | N12: бв | V12: а | W12: а | X12: а | Y12: а | AB12: бт | AC12: бт | AD12: бт | AE12: бт | AF12: бт | AG12: бт | AH12: бт | AQ12: =COUNTIF(F12:AJ12,"бв") -> 9 | AR12: =COUNTIF(F12:AJ12,"бв") -> 9 | AS12: =COUNTIF(F12:AJ12,"а") -> 4 | AT12: =COUNTIF(F12:AJ12,"и") -> 0
A13: 2 | B13: =INDEX(Список!$B$2:$AZ$71,$A13,MATCH($B$10,отд,0)) -> Батенев Владимир Николаевич | C13: =INDEX(Список!$B$2:$AZ$71,$A13,MATCH($B$10,отд,0)+1) -> Электромонтажник 3 разряда | D13: Факт | AK13: =COUNTIF(F13:AJ13,">=4")+COUNTIF(F13:AJ13,"к*") -> 0 | AL13: =IF(ISNA(SUM(ИЗВЛЕЧЬЦЕЛЫЕ(F13:AJ13))),0,SUM(ИЗВЛЕЧЬЦЕЛЫЕ(F13:AJ13))) -> 0 | AN13: =AM13*0.87 -> 0 | AQ13: =COUNTIF(F13:AJ13,"в") -> 0 | AR13: =COUNTIF(F13:AJ13,"о") -> 0 | AS13: =COUNTIF(F13:AJ13,"п") -> 0 | AT13: =COUNTIF(F13:AJ13,"к*") -> 0 | AU13: =COUNTIF(F13:AJ13,"а") -> 0 | AV13: =COUNTIF(F13:AJ13,"б") -> 0
D14: Объект | AQ14: =COUNTIF(F14:AJ14,"бв") -> 0 | AR14: =COUNTIF(F14:AJ14,"бв") -> 0 | AS14: =COUNTIF(F14:AJ14,"а") -> 0 | AT14: =COUNTIF(F14:AJ14,"и") -> 0
A15: 3 | B15: =INDEX(Список!$B$2:$AZ$71,$A15,MATCH($B$10,отд,0)) -> Блиц Евгений Иванович | C15: =INDEX(Список!$B$2:$AZ$71,$A15,MATCH($B$10,отд,0)+1) -> Электромонтажник 3 разряда | D15: Факт | G15: 7 | H15: 7 | I15: 7 | J15: 7 | K15: 7 | L15: 7 | M15: 7 | N15: 7 | AK15: =COUNTIF(F15:AJ15,">=4")+COUNTIF(F15:AJ15,"к*") -> 8 | AL15: =IF(ISNA(SUM(ИЗВЛЕЧЬЦЕЛЫЕ(F15:AJ15))),0,SUM(ИЗВЛЕЧЬЦЕЛЫЕ(F15:AJ15))) -> 56 | AM15: 11113 | AN15: =AM15*0.87 -> 9668.31 | AQ15: =COUNTIF(F15:AJ15,"в") -> 0 | AR15: =COUNTIF(F15:AJ15,"о") -> 0 | AS15: =COUNTIF(F15:AJ15,"п") -> 0 | AT15: =COUNTIF(F15:AJ15,"к*") -> 0 | AU15: =COUNTIF(F15:AJ15,"а") -> 0 | AV15: =COUNTIF(F15:AJ15,"б") -> 0
D16: Объект | G16: бв | H16: бв | I16: бв | J16: бв | K16: бв | L16: бв | M16: бв | N16: бв | AQ16: =COUNTIF(F16:AJ16,"бв") -> 8 | AR16: =COUNTIF(F16:AJ16,"бв") -> 8 | AS16: =COUNTIF(F16:AJ16,"а") -> 0 | AT16: =COUNTIF(F16:AJ16,"и") -> 0
A17: 4 | B17: =INDEX(Список!$B$2:$AZ$71,$A17,MATCH($B$10,отд,0)) -> Бубнов Павел Петрович | C17: =INDEX(Список!$B$2:$AZ$71,$A17,MATCH($B$10,отд,0)+1) -> Электромонтажник 3 разряда | D17: Факт | G17: к(8) | H17: к(8) | I17: к(8) | J17: к(8) | K17: к(8) | L17: к(8) | M17: к(8) | N17: к(8) | Z17: к(7) | AA17: к(7) | AB17: к(7) | AC17: к(7) | AD17: к(7) | AE17: к(7) | AF17: к(7) | AK17: =COUNTIF(F17:AJ17,">=4")+COUNTIF(F17:AJ17,"к*") -> 15 | AL17: =IF(ISNA(SUM(ИЗВЛЕЧЬЦЕЛЫЕ(F17:AJ17))),0,SUM(ИЗВЛЕЧЬЦЕЛЫЕ(F17:AJ17))) -> 113 | AM17: 11114 | AN17: =AM17*0.87 -> 9669.18 | AQ17: =COUNTIF(F17:AJ17,"в") -> 0 | AR17: =COUNTIF(F17:AJ17,"о") -> 0 | AS17: =COUNTIF(F17:AJ17,"п") -> 0 | AT17: =COUNTIF(F17:AJ17,"к*") -> 15 | AU17: =COUNTIF(F17:AJ17,"а") -> 0 | AV17: =COUNTIF(F17:AJ17,"б") -> 0
D18: Объект | G18: а | H18: а | I18: а | J18: а | K18: а | L18: а | M18: а | N18: а | Z18: тс | AA18: тс | AB18: тс | AC18: тс | AD18: тс | AE18: тс | AF18: тс | AQ18: =COUNTIF(F18:AJ18,"бв") -> 0 | AR18: =COUNTIF(F18:AJ18,"бв") -> 0 | AS18: =COUNTIF(F18:AJ18,"а") -> 8 | AT18: =COUNTIF(F18:AJ18,"и") -> 0
A19: 5 | B19: =INDEX(Список!$B$2:$AZ$71,$A19,MATCH($B$10,отд,0)) -> Верле Яков Эмануилович | C19: =INDEX(Список!$B$2:$AZ$71,$A19,MATCH($B$10,отд,0)+1) -> Электромонтажник 5 разряда | D19: Факт | G19: к | H19: к | I19: к | J19: к | K19: к | L19: к | M19: к | N19: к | AK19: =COUNTIF(F19:AJ19,">=4")+COUNTIF(F19:AJ19,"к*") -> 8 | AL19: =IF(ISNA(SUM(ИЗВЛЕЧЬЦЕЛЫЕ(F19:AJ19))),0,SUM(ИЗВЛЕЧЬЦЕЛЫЕ(F19:AJ19))) -> 0 | AM19: 11115 | AN19: =AM19*0.87 -> 9670.05 | AQ19: =COUNTIF(F19:AJ19,"в") -> 0 | AR19: =COUNTIF(F19:AJ19,"о") -> 0 | AS19: =COUNTIF(F19:AJ19,"п") -> 0 | AT19: =COUNTIF(F19:AJ19,"к*") -> 8 | AU19: =COUNTIF(F19:AJ19,"а") -> 0 | AV19: =COUNTIF(F19:AJ19,"б") -> 0
D20: Объект | G20: и | H20: и | I20: и | J20: и | K20: и | L20: и | M20: и | N20: и | AQ20: =COUNTIF(F20:AJ20,"бв") -> 0 | AR20: =COUNTIF(F20:AJ20,"бв") -> 0 | AS20: =COUNTIF(F20:AJ20,"а") -> 0 | AT20: =COUNTIF(F20:AJ20,"и") -> 8
A21: 6 | B21: =INDEX(Список!$B$2:$AZ$71,$A21,MATCH($B$10,отд,0)) -> Витовтов Рустам Владимирович | C21: =INDEX(Список!$B$2:$AZ$71,$A21,MATCH($B$10,отд,0)+1) -> Электромонтажник 3 разряда | D21: Факт | AK21: =COUNTIF(F21:AJ21,">=4")+COUNTIF(F21:AJ21,"к*") -> 0 | AL21: =IF(ISNA(SUM(ИЗВЛЕЧЬЦЕЛЫЕ(F21:AJ21))),0,SUM(ИЗВЛЕЧЬЦЕЛЫЕ(F21:AJ21))) -> 0 | AN21: =AM21*0.87 -> 0 | AQ21: =COUNTIF(F21:AJ21,"в") -> 0 | AR21: =COUNTIF(F21:AJ21,"о") -> 0 | AS21: =COUNTIF(F21:AJ21,"п") -> 0 | AT21: =COUNTIF(F21:AJ21,"к*") -> 0 | AU21: =COUNTIF(F21:AJ21,"а") -> 0 | AV21: =COUNTIF(F21:AJ21,"б") -> 0
D22: Объект | AQ22: =COUNTIF(F22:AJ22,"бв") -> 0 | AR22: =COUNTIF(F22:AJ22,"бв") -> 0 | AS22: =COUNTIF(F22:AJ22,"а") -> 0 | AT22: =COUNTIF(F22:AJ22,"и") -> 0
A23: 7 | B23: =INDEX(Список!$B$2:$AZ$71,$A23,MATCH($B$10,отд,0)) -> Возжов Алексей Сергеевич | C23: =INDEX(Список!$B$2:$AZ$71,$A23,MATCH($B$10,отд,0)+1) -> Электромонтажник 3 разряда | D23: Факт | AK23: =COUNTIF(F23:AJ23,">=4")+COUNTIF(F23:AJ23,"к*") -> 0 | AL23: =IF(ISNA(SUM(ИЗВЛЕЧЬЦЕЛЫЕ(F23:AJ23))),0,SUM(ИЗВЛЕЧЬЦЕЛЫЕ(F23:AJ23))) -> 0 | AN23: =AM23*0.87 -> 0 | AQ23: =COUNTIF(F23:AJ23,"в") -> 0 | AR23: =COUNTIF(F23:AJ23,"о") -> 0 | AS23: =COUNTIF(F23:AJ23,"п") -> 0 | AT23: =COUNTIF(F23:AJ23,"к*") -> 0 | AU23: =COUNTIF(F23:AJ23,"а") -> 0 | AV23: =COUNTIF(F23:AJ23,"б") -> 0
D24: Объект | AQ24: =COUNTIF(F24:AJ24,"бв") -> 0 | AR24: =COUNTIF(F24:AJ24,"бв") -> 0 | AS24: =COUNTIF(F24:AJ24,"а") -> 0 | AT24: =COUNTIF(F24:AJ24,"и") -> 0
A25: 8 | B25: =INDEX(Список!$B$2:$AZ$71,$A25,MATCH($B$10,отд,0)) -> Вяткин Владимир Сергеевич | C25: =INDEX(Список!$B$2:$AZ$71,$A25,MATCH($B$10,отд,0)+1) -> Электромонтажник 3 разряда | D25: Факт | AK25: =COUNTIF(F25:AJ25,">=4")+COUNTIF(F25:AJ25,"к*") -> 0 | AL25: =IF(ISNA(SUM(ИЗВЛЕЧЬЦЕЛЫЕ(F25:AJ25))),0,SUM(ИЗВЛЕЧЬЦЕЛЫЕ(F25:AJ25))) -> 0 | AN25: =AM25*0.87 -> 0 | AQ25: =COUNTIF(F25:AJ25,"в") -> 0 | AR25: =COUNTIF(F25:AJ25,"о") -> 0 | AS25: =COUNTIF(F25:AJ25,"п") -> 0 | AT25: =COUNTIF(F25:AJ25,"к*") -> 0 | AU25: =COUNTIF(F25:AJ25,"а") -> 0 | AV25: =COUNTIF(F25:AJ25,"б") -> 0
D26: Объект | AQ26: =COUNTIF(F26:AJ26,"бв") -> 0 | AR26: =COUNTIF(F26:AJ26,"бв") -> 0 | AS26: =COUNTIF(F26:AJ26,"а") -> 0 | AT26: =COUNTIF(F26:AJ26,"и") -> 0
A27: 9 | B27: =INDEX(Список!$B$2:$AZ$71,$A27,MATCH($B$10,отд,0)) -> Гвоздева Людмила Григорьевна | C27: =INDEX(Список!$B$2:$AZ$71,$A27,MATCH($B$10,отд,0)+1) -> Электромонтажник 5 разряда | D27: Факт | AK27: =COUNTIF(F27:AJ27,">=4")+COUNTIF(F27:AJ27,"к*") -> 0 | AL27: =IF(ISNA(SUM(ИЗВЛЕЧЬЦЕЛЫЕ(F27:AJ27))),0,SUM(ИЗВЛЕЧЬЦЕЛЫЕ(F27:AJ27))) -> 0 | AN27: =AM27*0.87 -> 0 | AQ27: =COUNTIF(F27:AJ27,"в") -> 0 | AR27: =COUNTIF(F27:AJ27,"о") -> 0 | AS27: =COUNTIF(F27:AJ27,"п") -> 0 | AT27: =COUNTIF(F27:AJ27,"к*") -> 0 | AU27: =COUNTIF(F27:AJ27,"а") -> 0 | AV27: =COUNTIF(F27:AJ27,"б") -> 0
D28: Объект | AQ28: =COUNTIF(F28:AJ28,"бв") -> 0 | AR28: =COUNTIF(F28:AJ28,"бв") -> 0 | AS28: =COUNTIF(F28:AJ28,"а") -> 0 | AT28: =COUNTIF(F28:AJ28,"и") -> 0
A29: 10 | B29: =INDEX(Список!$B$2:$AZ$71,$A29,MATCH($B$10,отд,0)) -> Гридасов Роман Андреевич | C29: =INDEX(Список!$B$2:$AZ$71,$A29,MATCH($B$10,отд,0)+1) -> Электромонтажник 3 разряда | D29: Факт | AK29: =COUNTIF(F29:AJ29,">=4")+COUNTIF(F29:AJ29,"к*") -> 0 | AL29: =IF(ISNA(SUM(ИЗВЛЕЧЬЦЕЛЫЕ(F29:AJ29))),0,SUM(ИЗВЛЕЧЬЦЕЛЫЕ(F29:AJ29))) -> 0 | AN29: =AM29*0.87 -> 0 | AQ29: =COUNTIF(F29:AJ29,"в") -> 0 | AR29: =COUNTIF(F29:AJ29,"о") -> 0 | AS29: =COUNTIF(F29:AJ29,"п") -> 0 | AT29: =COUNTIF(F29:AJ29,"к*") -> 0 | AU29: =COUNTIF(F29:AJ29,"а") -> 0 | AV29: =COUNTIF(F29:AJ29,"б") -> 0
D30: Объект | AQ30: =COUNTIF(F30:AJ30,"бв") -> 0 | AR30: =COUNTIF(F30:AJ30,"бв") -> 0 | AS30: =COUNTIF(F30:AJ30,"а") -> 0 | AT30: =COUNTIF(F30:AJ30,"и") -> 0
A31: 11 | B31: =INDEX(Список!$B$2:$AZ$71,$A31,MATCH($B$10,отд,0)) -> Дударев Александр Васильевич | C31: =INDEX(Список!$B$2:$AZ$71,$A31,MATCH($B$10,отд,0)+1) -> Электромонтажник 3 разряда | D31: Факт | AK31: =COUNTIF(F31:AJ31,">=4")+COUNTIF(F31:AJ31,"к*") -> 0 | AL31: =IF(ISNA(SUM(ИЗВЛЕЧЬЦЕЛЫЕ(F31:AJ31))),0,SUM(ИЗВЛЕЧЬЦЕЛЫЕ(F31:AJ31))) -> 0 | AN31: =AM31*0.87 -> 0 | AQ31: =COUNTIF(F31:AJ31,"в") -> 0 | AR31: =COUNTIF(F31:AJ31,"о") -> 0 | AS31: =COUNTIF(F31:AJ31,"п") -> 0 | AT31: =COUNTIF(F31:AJ31,"к*") -> 0 | AU31: =COUNTIF(F31:AJ31,"а") -> 0 | AV31: =COUNTIF(F31:AJ31,"б") -> 0
D32: Объект | AQ32: =COUNTIF(F32:AJ32,"бв") -> 0 | AR32: =COUNTIF(F32:AJ32,"бв") -> 0 | AS32: =COUNTIF(F32:AJ32,"а") -> 0 | AT32: =COUNTIF(F32:AJ32,"и") -> 0
A33: 12 | B33: =INDEX(Список!$B$2:$AZ$71,$A33,MATCH($B$10,отд,0)) -> Елисов Виталий Юрьевич | C33: =INDEX(Список!$B$2:$AZ$71,$A33,MATCH($B$10,отд,0)+1) -> Мастер участка | D33: Факт | F33: 8 | G33: 8 | H33: 8 | I33: 8 | J33: 8 | K33: 8 | L33: 8 | M33: 8 | N33: 8 | O33: 8 | P33: 8 | Q33: 8 | R33: 8 | S33: 8 | T33: 8 | U33: 8 | AK33: =COUNTIF(F33:AJ33,">=4")+COUNTIF(F33:AJ33,"к*") -> 16 | AL33: =IF(ISNA(SUM(ИЗВЛЕЧЬЦЕЛЫЕ(F33:AJ33))),0,SUM(ИЗВЛЕЧЬЦЕЛЫЕ(F33:AJ33))) -> 128 | AM33: 11122 | AN33: =AM33*0.87 -> 9676.14 | AQ33: =COUNTIF(F33:AJ33,"в") -> 0 | AR33: =COUNTIF(F33:AJ33,"о") -> 0 | AS33: =COUNTIF(F33:AJ33,"п") -> 0 | AT33: =COUNTIF(F33:AJ33,"к*") -> 0 | AU33: =COUNTIF(F33:AJ33,"а") -> 0 | AV33: =COUNTIF(F33:AJ33,"б") -> 0
D34: Объект | AQ34: =COUNTIF(F34:AJ34,"бв") -> 0 | AR34: =COUNTIF(F34:AJ34,"бв") -> 0 | AS34: =COUNTIF(F34:AJ34,"а") -> 0 | AT34: =COUNTIF(F34:AJ34,"и") -> 0
A35: 13 | B35: =INDEX(Список!$B$2:$AZ$71,$A35,MATCH($B$10,отд,0)) -> Зайцев Олег Валентинович | C35: =INDEX(Список!$B$2:$AZ$71,$A35,MATCH($B$10,отд,0)+1) -> Специалист по подготовке производства | D35: Факт | AK35: =COUNTIF(F35:AJ35,">=4")+COUNTIF(F35:AJ35,"к*") -> 0 | AL35: =IF(ISNA(SUM(ИЗВЛЕЧЬЦЕЛЫЕ(F35:AJ35))),0,SUM(ИЗВЛЕЧЬЦЕЛЫЕ(F35:AJ35))) -> 0 | AN35: =AM35*0.87 -> 0 | AQ35: =COUNTIF(F35:AJ35,"в") -> 0 | AR35: =COUNTIF(F35:AJ35,"о") -> 0 | AS35: =COUNTIF(F35:AJ35,"п") -> 0 | AT35: =COUNTIF(F35:AJ35,"к*") -> 0 | AU35: =COUNTIF(F35:AJ35,"а") -> 0 | AV35: =COUNTIF(F35:AJ35,"б") -> 0
D36: Объект | AQ36: =COUNTIF(F36:AJ36,"бв") -> 0 | AR36: =COUNTIF(F36:AJ36,"бв") -> 0 | AS36: =COUNTIF(F36:AJ36,"а") -> 0 | AT36: =COUNTIF(F36:AJ36,"и") -> 0
A37: 14 | B37: =INDEX(Список!$B$2:$AZ$71,$A37,MATCH($B$10,отд,0)) -> Зюзин Алексей Артурович | C37: =INDEX(Список!$B$2:$AZ$71,$A37,MATCH($B$10,отд,0)+1) -> Электромонтажник 4 разряда | D37: Факт | AK37: =COUNTIF(F37:AJ37,">=4")+COUNTIF(F37:AJ37,"к*") -> 0 | AL37: =IF(ISNA(SUM(ИЗВЛЕЧЬЦЕЛЫЕ(F37:AJ37))),0,SUM(ИЗВЛЕЧЬЦЕЛЫЕ(F37:AJ37))) -> 0 | AN37: =AM37*0.87 -> 0 | AQ37: =COUNTIF(F37:AJ37,"в") -> 0 | AR37: =COUNTIF(F37:AJ37,"о") -> 0 | AS37: =COUNTIF(F37:AJ37,"п") -> 0 | AT37: =COUNTIF(F37:AJ37,"к*") -> 0 | AU37: =COUNTIF(F37:AJ37,"а") -> 0 | AV37: =COUNTIF(F37:AJ37,"б") -> 0
D38: Объект | AQ38: =COUNTIF(F38:AJ38,"бв") -> 0 | AR38: =COUNTIF(F38:AJ38,"бв") -> 0 | AS38: =COUNTIF(F38:AJ38,"а") -> 0 | AT38: =COUNTIF(F38:AJ38,"и") -> 0
A39: 15 | B39: =INDEX(Список!$B$2:$AZ$71,$A39,MATCH($B$10,отд,0)) -> Иванов Владимир Аркадьевич | C39: =INDEX(Список!$B$2:$AZ$71,$A39,MATCH($B$10,отд,0)+1) -> Электромонтажник 3 разряда | D39: Факт | AK39: =COUNTIF(F39:AJ39,">=4")+COUNTIF(F39:AJ39,"к*") -> 0 | AL39: =IF(ISNA(SUM(ИЗВЛЕЧЬЦЕЛЫЕ(F39:AJ39))),0,SUM(ИЗВЛЕЧЬЦЕЛЫЕ(F39:AJ39))) -> 0 | AN39: =AM39*0.87 -> 0 | AQ39: =COUNTIF(F39:AJ39,"в") -> 0 | AR39: =COUNTIF(F39:AJ39,"о") -> 0 | AS39: =COUNTIF(F39:AJ39,"п") -> 0 | AT39: =COUNTIF(F39:AJ39,"к*") -> 0 | AU39: =COUNTIF(F39:AJ39,"а") -> 0 | AV39: =COUNTIF(F39:AJ39,"б") -> 0
D40: Объект | AQ40: =COUNTIF(F40:AJ40,"бв") -> 0 | AR40: =COUNTIF(F40:AJ40,"бв") -> 0 | AS40: =COUNTIF(F40:AJ40,"а") -> 0 | AT40: =COUNTIF(F40:AJ40,"и") -> 0
A41: 16 | B41: =INDEX(Список!$B$2:$AZ$71,$A41,MATCH($B$10,отд,0)) -> Кагитина Любовь Ивановна | C41: =INDEX(Список!$B$2:$AZ$71,$A41,MATCH($B$10,отд,0)+1) -> Уборщик служебных помещений | D41: Факт | AK41: =COUNTIF(F41:AJ41,">=4")+COUNTIF(F41:AJ41,"к*") -> 0 | AL41: =IF(ISNA(SUM(ИЗВЛЕЧЬЦЕЛЫЕ(F41:AJ41))),0,SUM(ИЗВЛЕЧЬЦЕЛЫЕ(F41:AJ41))) -> 0 | AN41: =AM41*0.87 -> 0 | AQ41: =COUNTIF(F41:AJ41,"в") -> 0 | AR41: =COUNTIF(F41:AJ41,"о") -> 0 | AS41: =COUNTIF(F41:AJ41,"п") -> 0 | AT41: =COUNTIF(F41:AJ41,"к*") -> 0 | AU41: =COUNTIF(F41:AJ41,"а") -> 0 | AV41: =COUNTIF(F41:AJ41,"б") -> 0
D42: Объект | AQ42: =COUNTIF(F42:AJ42,"бв") -> 0 | AR42: =COUNTIF(F42:AJ42,"бв") -> 0 | AS42: =COUNTIF(F42:AJ42,"а") -> 0 | AT42: =COUNTIF(F42:AJ42,"и") -> 0
A43: 17 | B43: =INDEX(Список!$B$2:$AZ$71,$A43,MATCH($B$10,отд,0)) -> Капаев Сергей Александрович | C43: =INDEX(Список!$B$2:$AZ$71,$A43,MATCH($B$10,отд,0)+1) -> Электромонтажник 5 разряда | D43: Факт | AK43: =COUNTIF(F43:AJ43,">=4")+COUNTIF(F43:AJ43,"к*") -> 0 | AL43: =IF(ISNA(SUM(ИЗВЛЕЧЬЦЕЛЫЕ(F43:AJ43))),0,SUM(ИЗВЛЕЧЬЦЕЛЫЕ(F43:AJ43))) -> 0 | AN43: =AM43*0.87 -> 0 | AQ43: =COUNTIF(F43:AJ43,"в") -> 0 | AR43: =COUNTIF(F43:AJ43,"о") -> 0 | AS43: =COUNTIF(F43:AJ43,"п") -> 0 | AT43: =COUNTIF(F43:AJ43,"к*") -> 0 | AU43: =COUNTIF(F43:AJ43,"а") -> 0 | AV43: =COUNTIF(F43:AJ43,"б") -> 0
D44: Объект | AQ44: =COUNTIF(F44:AJ44,"бв") -> 0 | AR44: =COUNTIF(F44:AJ44,"бв") -> 0 | AS44: =COUNTIF(F44:AJ44,"а") -> 0 | AT44: =COUNTIF(F44:AJ44,"и") -> 0
A45: 18 | B45: =INDEX(Список!$B$2:$AZ$71,$A45,MATCH($B$10,отд,0)) -> Капаева Татьяна Анатольевна | C45: =INDEX(Список!$B$2:$AZ$71,$A45,MATCH($B$10,отд,0)+1) -> Электромонтажник 3 разряда | D45: Факт | AK45: =COUNTIF(F45:AJ45,">=4")+COUNTIF(F45:AJ45,"к*") -> 0 | AL45: =IF(ISNA(SUM(ИЗВЛЕЧЬЦЕЛЫЕ(F45:AJ45))),0,SUM(ИЗВЛЕЧЬЦЕЛЫЕ(F45:AJ45))) -> 0 | AN45: =AM45*0.87 -> 0 | AQ45: =COUNTIF(F45:AJ45,"в") -> 0 | AR45: =COUNTIF(F45:AJ45,"о") -> 0 | AS45: =COUNTIF(F45:AJ45,"п") -> 0 | AT45: =COUNTIF(F45:AJ45,"к*") -> 0 | AU45: =COUNTIF(F45:AJ45,"а") -> 0 | AV45: =COUNTIF(F45:AJ45,"б") -> 0
D46: Объект | AQ46: =COUNTIF(F46:AJ46,"бв") -> 0 | AR46: =COUNTIF(F46:AJ46,"бв") -> 0 | AS46: =COUNTIF(F46:AJ46,"а") -> 0 | AT46: =COUNTIF(F46:AJ46,"и") -> 0
A47: 19 | B47: =INDEX(Список!$B$2:$AZ$71,$A47,MATCH($B$10,отд,0)) -> Керносов Антон Сергеевич | C47: =INDEX(Список!$B$2:$AZ$71,$A47,MATCH($B$10,отд,0)+1) -> Электромонтажник 3 разряда | D47: Факт | AK47: =COUNTIF(F47:AJ47,">=4")+COUNTIF(F47:AJ47,"к*") -> 0 | AL47: =IF(ISNA(SUM(ИЗВЛЕЧЬЦЕЛЫЕ(F47:AJ47))),0,SUM(ИЗВЛЕЧЬЦЕЛЫЕ(F47:AJ47))) -> 0 | AN47: =AM47*0.87 -> 0 | AQ47: =COUNTIF(F47:AJ47,"в") -> 0 | AR47: =COUNTIF(F47:AJ47,"о") -> 0 | AS47: =COUNTIF(F47:AJ47,"п") -> 0 | AT47: =COUNTIF(F47:AJ47,"к*") -> 0 | AU47: =COUNTIF(F47:AJ47,"а") -> 0 | AV47: =COUNTIF(F47:AJ47,"б") -> 0
D48: Объект | AQ48: =COUNTIF(F48:AJ48,"бв") -> 0 | AR48: =COUNTIF(F48:AJ48,"бв") -> 0 | AS48: =COUNTIF(F48:AJ48,"а") -> 0 | AT48: =COUNTIF(F48:AJ48,"и") -> 0
A49: 20 | B49: =INDEX(Список!$B$2:$AZ$71,$A49,MATCH($B$10,отд,0)) -> Клочков Николай Геннадьевич | C49: =INDEX(Список!$B$2:$AZ$71,$A49,MATCH($B$10,отд,0)+1) -> Электромонтажник 3 разряда | D49: Факт | AK49: =COUNTIF(F49:AJ49,">=4")+COUNTIF(F49:AJ49,"к*") -> 0 | AL49: =IF(ISNA(SUM(ИЗВЛЕЧЬЦЕЛЫЕ(F49:AJ49))),0,SUM(ИЗВЛЕЧЬЦЕЛЫЕ(F49:AJ49))) -> 0 | AN49: =AM49*0.87 -> 0 | AQ49: =COUNTIF(F49:AJ49,"в") -> 0 | AR49: =COUNTIF(F49:AJ49,"о") -> 0 | AS49: =COUNTIF(F49:AJ49,"п") -> 0 | AT49: =COUNTIF(F49:AJ49,"к*") -> 0 | AU49: =COUNTIF(F49:AJ49,"а") -> 0 | AV49: =COUNTIF(F49:AJ49,"б") -> 0
D50: Объект | AQ50: =COUNTIF(F50:AJ50,"бв") -> 0 | AR50: =COUNTIF(F50:AJ50,"бв") -> 0 | AS50: =COUNTIF(F50:AJ50,"а") -> 0 | AT50: =COUNTIF(F50:AJ50,"и") -> 0
A51: 21 | B51: =INDEX(Список!$B$2:$AZ$71,$A51,MATCH($B$10,отд,0)) -> Ковылин Александр Алексеевич | C51: =INDEX(Список!$B$2:$AZ$71,$A51,MATCH($B$10,отд,0)+1) -> Электромонтажник 3 разряда | D51: Факт | AK51: =COUNTIF(F51:AJ51,">=4")+COUNTIF(F51:AJ51,"к*") -> 0 | AL51: =IF(ISNA(SUM(ИЗВЛЕЧЬЦЕЛЫЕ(F51:AJ51))),0,SUM(ИЗВЛЕЧЬЦЕЛЫЕ(F51:AJ51))) -> 0 | AN51: =AM51*0.87 -> 0 | AQ51: =COUNTIF(F51:AJ51,"в") -> 0 | AR51: =COUNTIF(F51:AJ51,"о") -> 0 | AS51: =COUNTIF(F51:AJ51,"п") -> 0 | AT51: =COUNTIF(F51:AJ51,"к*") -> 0 | AU51: =COUNTIF(F51:AJ51,"а") -> 0 | AV51: =COUNTIF(F51:AJ51,"б") -> 0
D52: Объект | AQ52: =COUNTIF(F52:AJ52,"бв") -> 0 | AR52: =COUNTIF(F52:AJ52,"бв") -> 0 | AS52: =COUNTIF(F52:AJ52,"а") -> 0 | AT52: =COUNTIF(F52:AJ52,"и") -> 0
A53: 22 | B53: =INDEX(Список!$B$2:$AZ$71,$A53,MATCH($B$10,отд,0)) -> Кононенко Александр Викторович | C53: =INDEX(Список!$B$2:$AZ$71,$A53,MATCH($B$10,отд,0)+1) -> Мастер участка | D53: Факт | AK53: =COUNTIF(F53:AJ53,">=4")+COUNTIF(F53:AJ53,"к*") -> 0 | AL53: =IF(ISNA(SUM(ИЗВЛЕЧЬЦЕЛЫЕ(F53:AJ53))),0,SUM(ИЗВЛЕЧЬЦЕЛЫЕ(F53:AJ53))) -> 0 | AN53: =AM53*0.87 -> 0 | AQ53: =COUNTIF(F53:AJ53,"в") -> 0 | AR53: =COUNTIF(F53:AJ53,"о") -> 0 | AS53: =COUNTIF(F53:AJ53,"п") -> 0 | AT53: =COUNTIF(F53:AJ53,"к*") -> 0 | AU53: =COUNTIF(F53:AJ53,"а") -> 0 | AV53: =COUNTIF(F53:AJ53,"б") -> 0
D54: Объект | AQ54: =COUNTIF(F54:AJ54,"бв") -> 0 | AR54: =COUNTIF(F54:AJ54,"бв") -> 0 | AS54: =COUNTIF(F54:AJ54,"а") -> 0 | AT54: =COUNTIF(F54:AJ54,"и") -> 0
A55: 23 | B55: =INDEX(Список!$B$2:$AZ$71,$A55,MATCH($B$10,отд,0)) -> Красильников Роман Викторович | C55: =INDEX(Список!$B$2:$AZ$71,$A55,MATCH($B$10,отд,0)+1) -> Электромонтажник 4 разряда | D55: Факт | AK55: =COUNTIF(F55:AJ55,">=4")+COUNTIF(F55:AJ55,"к*") -> 0 | AL55: =IF(ISNA(SUM(ИЗВЛЕЧЬЦЕЛЫЕ(F55:AJ55))),0,SUM(ИЗВЛЕЧЬЦЕЛЫЕ(F55:AJ55))) -> 0 | AN55: =AM55*0.87 -> 0 | AQ55: =COUNTIF(F55:AJ55,"в") -> 0 | AR55: =COUNTIF(F55:AJ55,"о") -> 0 | AS55: =COUNTIF(F55:AJ55,"п") -> 0 | AT55: =COUNTIF(F55:AJ55,"к*") -> 0 | AU55: =COUNTIF(F55:AJ55,"а") -> 0 | AV55: =COUNTIF(F55:AJ55,"б") -> 0
D56: Объект | AQ56: =COUNTIF(F56:AJ56,"бв") -> 0 | AR56: =COUNTIF(F56:AJ56,"бв") -> 0 | AS56: =COUNTIF(F56:AJ56,"а") -> 0 | AT56: =COUNTIF(F56:AJ56,"и") -> 0
A57: 24 | B57: =INDEX(Список!$B$2:$AZ$71,$A57,MATCH($B$10,отд,0)) -> Кузнецов Александр Николаевич | C57: =INDEX(Список!$B$2:$AZ$71,$A57,MATCH($B$10,отд,0)+1) -> Начальник участка | D57: Факт | AK57: =COUNTIF(F57:AJ57,">=4")+COUNTIF(F57:AJ57,"к*") -> 0 | AL57: =IF(ISNA(SUM(ИЗВЛЕЧЬЦЕЛЫЕ(F57:AJ57))),0,SUM(ИЗВЛЕЧЬЦЕЛЫЕ(F57:AJ57))) -> 0 | AN57: =AM57*0.87 -> 0 | AQ57: =COUNTIF(F57:AJ57,"в") -> 0 | AR57: =COUNTIF(F57:AJ57,"о") -> 0 | AS57: =COUNTIF(F57:AJ57,"п") -> 0 | AT57: =COUNTIF(F57:AJ57,"к*") -> 0 | AU57: =COUNTIF(F57:AJ57,"а") -> 0 | AV57: =COUNTIF(F57:AJ57,"б") -> 0
D58: Объект | AQ58: =COUNTIF(F58:AJ58,"бв") -> 0 | AR58: =COUNTIF(F58:AJ58,"бв") -> 0 | AS58: =COUNTIF(F58:AJ58,"а") -> 0 | AT58: =COUNTIF(F58:AJ58,"и") -> 0
A59: 25 | B59: =INDEX(Список!$B$2:$AZ$71,$A59,MATCH($B$10,отд,0)) -> Кузнецова Наталья Викторовна | C59: =INDEX(Список!$B$2:$AZ$71,$A59,MATCH($B$10,отд,0)+1) -> Офис-менеджер | D59: Факт | AK59: =COUNTIF(F59:AJ59,">=4")+COUNTIF(F59:AJ59,"к*") -> 0 | AL59: =IF(ISNA(SUM(ИЗВЛЕЧЬЦЕЛЫЕ(F59:AJ59))),0,SUM(ИЗВЛЕЧЬЦЕЛЫЕ(F59:AJ59))) -> 0 | AN59: =AM59*0.87 -> 0 | AQ59: =COUNTIF(F59:AJ59,"в") -> 0 | AR59: =COUNTIF(F59:AJ59,"о") -> 0 | AS59: =COUNTIF(F59:AJ59,"п") -> 0 | AT59: =COUNTIF(F59:AJ59,"к*") -> 0 | AU59: =COUNTIF(F59:AJ59,"а") -> 0 | AV59: =COUNTIF(F59:AJ59,"б") -> 0
D60: Объект | AQ60: =COUNTIF(F60:AJ60,"бв") -> 0 | AR60: =COUNTIF(F60:AJ60,"бв") -> 0 | AS60: =COUNTIF(F60:AJ60,"а") -> 0 | AT60: =COUNTIF(F60:AJ60,"и") -> 0
A61: 26 | B61: =INDEX(Список!$B$2:$AZ$71,$A61,MATCH($B$10,отд,0)) -> Кузовлев Николай Николаевич | C61: =INDEX(Список!$B$2:$AZ$71,$A61,MATCH($B$10,отд,0)+1) -> Электромонтажник 4 разряда | D61: Факт | AK61: =COUNTIF(F61:AJ61,">=4")+COUNTIF(F61:AJ61,"к*") -> 0 | AL61: =IF(ISNA(SUM(ИЗВЛЕЧЬЦЕЛЫЕ(F61:AJ61))),0,SUM(ИЗВЛЕЧЬЦЕЛЫЕ(F61:AJ61))) -> 0 | AN61: =AM61*0.87 -> 0 | AQ61: =COUNTIF(F61:AJ61,"в") -> 0 | AR61: =COUNTIF(F61:AJ61,"о") -> 0 | AS61: =COUNTIF(F61:AJ61,"п") -> 0 | AT61: =COUNTIF(F61:AJ61,"к*") -> 0 | AU61: =COUNTIF(F61:AJ61,"а") -> 0 | AV61: =COUNTIF(F61:AJ61,"б") -> 0
D62: Объект | AQ62: =COUNTIF(F62:AJ62,"бв") -> 0 | AR62: =COUNTIF(F62:AJ62,"бв") -> 0 | AS62: =COUNTIF(F62:AJ62,"а") -> 0 | AT62: =COUNTIF(F62:AJ62,"и") -> 0
A63: 27 | B63: =INDEX(Список!$B$2:$AZ$71,$A63,MATCH($B$10,отд,0)) -> Кузьмин Виталий Анатольевич | C63: =INDEX(Список!$B$2:$AZ$71,$A63,MATCH($B$10,отд,0)+1) -> Электромонтажник 5 разряда | D63: Факт | AK63: =COUNTIF(F63:AJ63,">=4")+COUNTIF(F63:AJ63,"к*") -> 0 | AL63: =IF(ISNA(SUM(ИЗВЛЕЧЬЦЕЛЫЕ(F63:AJ63))),0,SUM(ИЗВЛЕЧЬЦЕЛЫЕ(F63:AJ63))) -> 0 | AN63: =AM63*0.87 -> 0 | AQ63: =COUNTIF(F63:AJ63,"в") -> 0 | AR63: =COUNTIF(F63:AJ63,"о") -> 0 | AS63: =COUNTIF(F63:AJ63,"п") -> 0 | AT63: =COUNTIF(F63:AJ63,"к*") -> 0 | AU63: =COUNTIF(F63:AJ63,"а") -> 0 | AV63: =COUNTIF(F63:AJ63,"б") -> 0
D64: Объект | AQ64: =COUNTIF(F64:AJ64,"бв") -> 0 | AR64: =COUNTIF(F64:AJ64,"бв") -> 0 | AS64: =COUNTIF(F64:AJ64,"а") -> 0 | AT64: =COUNTIF(F64:AJ64,"и") -> 0
A65: 28 | B65: =INDEX(Список!$B$2:$AZ$71,$A65,MATCH($B$10,отд,0)) -> Курганский Алексей Семенович | C65: =INDEX(Список!$B$2:$AZ$71,$A65,MATCH($B$10,отд,0)+1) -> Электромонтажник 4 разряда | D65: Факт | AK65: =COUNTIF(F65:AJ65,">=4")+COUNTIF(F65:AJ65,"к*") -> 0 | AL65: =IF(ISNA(SUM(ИЗВЛЕЧЬЦЕЛЫЕ(F65:AJ65))),0,SUM(ИЗВЛЕЧЬЦЕЛЫЕ(F65:AJ65))) -> 0 | AN65: =AM65*0.87 -> 0 | AQ65: =COUNTIF(F65:AJ65,"в") -> 0 | AR65: =COUNTIF(F65:AJ65,"о") -> 0 | AS65: =COUNTIF(F65:AJ65,"п") -> 0 | AT65: =COUNTIF(F65:AJ65,"к*") -> 0 | AU65: =COUNTIF(F65:AJ65,"а") -> 0 | AV65: =COUNTIF(F65:AJ65,"б") -> 0
D66: Объект | AQ66: =COUNTIF(F66:AJ66,"бв") -> 0 | AR66: =COUNTIF(F66:AJ66,"бв") -> 0 | AS66: =COUNTIF(F66:AJ66,"а") -> 0 | AT66: =COUNTIF(F66:AJ66,"и") -> 0
A67: 29 | B67: =INDEX(Список!$B$2:$AZ$71,$A67,MATCH($B$10,отд,0)) -> Кутищев Алексей Павлович | C67: =INDEX(Список!$B$2:$AZ$71,$A67,MATCH($B$10,отд,0)+1) -> Электромонтажник 3 разряда | D67: Факт | AK67: =COUNTIF(F67:AJ67,">=4")+COUNTIF(F67:AJ67,"к*") -> 0 | AL67: =IF(ISNA(SUM(ИЗВЛЕЧЬЦЕЛЫЕ(F67:AJ67))),0,SUM(ИЗВЛЕЧЬЦЕЛЫЕ(F67:AJ67))) -> 0 | AN67: =AM67*0.87 -> 0 | AQ67: =COUNTIF(F67:AJ67,"в") -> 0 | AR67: =COUNTIF(F67:AJ67,"о") -> 0 | AS67: =COUNTIF(F67:AJ67,"п") -> 0 | AT67: =COUNTIF(F67:AJ67,"к*") -> 0 | AU67: =COUNTIF(F67:AJ67,"а") -> 0 | AV67: =COUNTIF(F67:AJ67,"б") -> 0
D68: Объект | AQ68: =COUNTIF(F68:AJ68,"бв") -> 0 | AR68: =COUNTIF(F68:AJ68,"бв") -> 0 | AS68: =COUNTIF(F68:AJ68,"а") -> 0 | AT68: =COUNTIF(F68:AJ68,"и") -> 0
A69: 30 | B69: =INDEX(Список!$B$2:$AZ$71,$A69,MATCH($B$10,отд,0)) -> Мартынюк Владимир Николаевич | C69: =INDEX(Список!$B$2:$AZ$71,$A69,MATCH($B$10,отд,0)+1) -> Электромонтажник 5 разряда | D69: Факт | AK69: =COUNTIF(F69:AJ69,">=4")+COUNTIF(F69:AJ69,"к*") -> 0 | AL69: =IF(ISNA(SUM(ИЗВЛЕЧЬЦЕЛЫЕ(F69:AJ69))),0,SUM(ИЗВЛЕЧЬЦЕЛЫЕ(F69:AJ69))) -> 0 | AN69: =AM69*0.87 -> 0 | AQ69: =COUNTIF(F69:AJ69,"в") -> 0 | AR69: =COUNTIF(F69:AJ69,"о") -> 0 | AS69: =COUNTIF(F69:AJ69,"п") -> 0 | AT69: =COUNTIF(F69:AJ69,"к*") -> 0 | AU69: =COUNTIF(F69:AJ69,"а") -> 0 | AV69: =COUNTIF(F69:AJ69,"б") -> 0
D70: Объект | AQ70: =COUNTIF(F70:AJ70,"бв") -> 0 | AR70: =COUNTIF(F70:AJ70,"бв") -> 0 | AS70: =COUNTIF(F70:AJ70,"а") -> 0 | AT70: =COUNTIF(F70:AJ70,"и") -> 0
A71: 31 | B71: =INDEX(Список!$B$2:$AZ$71,$A71,MATCH($B$10,отд,0)) -> Матюхин Анатолий Афанасьевич | C71: =INDEX(Список!$B$2:$AZ$71,$A71,MATCH($B$10,отд,0)+1) -> Электромонтажник 5 разряда | D71: Факт | AK71: =COUNTIF(F71:AJ71,">=4")+COUNTIF(F71:AJ71,"к*") -> 0 | AL71: =IF(ISNA(SUM(ИЗВЛЕЧЬЦЕЛЫЕ(F71:AJ71))),0,SUM(ИЗВЛЕЧЬЦЕЛЫЕ(F71:AJ71))) -> 0 | AN71: =AM71*0.87 -> 0 | AQ71: =COUNTIF(F71:AJ71,"в") -> 0 | AR71: =COUNTIF(F71:AJ71,"о") -> 0 | AS71: =COUNTIF(F71:AJ71,"п") -> 0 | AT71: =COUNTIF(F71:AJ71,"к*") -> 0 | AU71: =COUNTIF(F71:AJ71,"а") -> 0 | AV71: =COUNTIF(F71:AJ71,"б") -> 0
D72: Объект | AQ72: =COUNTIF(F72:AJ72,"бв") -> 0 | AR72: =COUNTIF(F72:AJ72,"бв") -> 0 | AS72: =COUNTIF(F72:AJ72,"а") -> 0 | AT72: =COUNTIF(F72:AJ72,"и") -> 0
A73: 32 | B73: =INDEX(Список!$B$2:$AZ$71,$A73,MATCH($B$10,отд,0)) -> Матюхина Галина Александровна | C73: =INDEX(Список!$B$2:$AZ$71,$A73,MATCH($B$10,отд,0)+1) -> Электромонтажник 5 разряда | D73: Факт | AK73: =COUNTIF(F73:AJ73,">=4")+COUNTIF(F73:AJ73,"к*") -> 0 | AL73: =IF(ISNA(SUM(ИЗВЛЕЧЬЦЕЛЫЕ(F73:AJ73))),0,SUM(ИЗВЛЕЧЬЦЕЛЫЕ(F73:AJ73))) -> 0 | AN73: =AM73*0.87 -> 0 | AQ73: =COUNTIF(F73:AJ73,"в") -> 0 | AR73: =COUNTIF(F73:AJ73,"о") -> 0 | AS73: =COUNTIF(F73:AJ73,"п") -> 0 | AT73: =COUNTIF(F73:AJ73,"к*") -> 0 | AU73: =COUNTIF(F73:AJ73,"а") -> 0 | AV73: =COUNTIF(F73:AJ73,"б") -> 0
D74: Объект | AQ74: =COUNTIF(F74:AJ74,"бв") -> 0 | AR74: =COUNTIF(F74:AJ74,"бв") -> 0 | AS74: =COUNTIF(F74:AJ74,"а") -> 0 | AT74: =COUNTIF(F74:AJ74,"и") -> 0
A75: 33 | B75: =INDEX(Список!$B$2:$AZ$71,$A75,MATCH($B$10,отд,0)) -> Метелкин Сергей Львович | C75: =INDEX(Список!$B$2:$AZ$71,$A75,MATCH($B$10,отд,0)+1) -> Электромонтажник 5 разряда | D75: Факт | AK75: =COUNTIF(F75:AJ75,">=4")+COUNTIF(F75:AJ75,"к*") -> 0 | AL75: =IF(ISNA(SUM(ИЗВЛЕЧЬЦЕЛЫЕ(F75:AJ75))),0,SUM(ИЗВЛЕЧЬЦЕЛЫЕ(F75:AJ75))) -> 0 | AN75: =AM75*0.87 -> 0 | AQ75: =COUNTIF(F75:AJ75,"в") -> 0 | AR75: =COUNTIF(F75:AJ75,"о") -> 0 | AS75: =COUNTIF(F75:AJ75,"п") -> 0 | AT75: =COUNTIF(F75:AJ75,"к*") -> 0 | AU75: =COUNTIF(F75:AJ75,"а") -> 0 | AV75: =COUNTIF(F75:AJ75,"б") -> 0
D76: Объект | AQ76: =COUNTIF(F76:AJ76,"бв") -> 0 | AR76: =COUNTIF(F76:AJ76,"бв") -> 0 | AS76: =COUNTIF(F76:AJ76,"а") -> 0 | AT76: =COUNTIF(F76:AJ76,"и") -> 0
A77: 34 | B77: =INDEX(Список!$B$2:$AZ$71,$A77,MATCH($B$10,отд,0)) -> Мильян Леонид Иванович | C77: =INDEX(Список!$B$2:$AZ$71,$A77,MATCH($B$10,отд,0)+1) -> Электромонтажник 5 разряда | D77: Факт | AK77: =COUNTIF(F77:AJ77,">=4")+COUNTIF(F77:AJ77,"к*") -> 0 | AL77: =IF(ISNA(SUM(ИЗВЛЕЧЬЦЕЛЫЕ(F77:AJ77))),0,SUM(ИЗВЛЕЧЬЦЕЛЫЕ(F77:AJ77))) -> 0 | AN77: =AM77*0.87 -> 0 | AQ77: =COUNTIF(F77:AJ77,"в") -> 0 | AR77: =COUNTIF(F77:AJ77,"о") -> 0 | AS77: =COUNTIF(F77:AJ77,"п") -> 0 | AT77: =COUNTIF(F77:AJ77,"к*") -> 0 | AU77: =COUNTIF(F77:AJ77,"а") -> 0 | AV77: =COUNTIF(F77:AJ77,"б") -> 0
D78: Объект | AQ78: =COUNTIF(F78:AJ78,"бв") -> 0 | AR78: =COUNTIF(F78:AJ78,"бв") -> 0 | AS78: =COUNTIF(F78:AJ78,"а") -> 0 | AT78: =COUNTIF(F78:AJ78,"и") -> 0
A79: 35 | B79: =INDEX(Список!$B$2:$AZ$71,$A79,MATCH($B$10,отд,0)) -> Милюков Юрий Виссарионович | C79: =INDEX(Список!$B$2:$AZ$71,$A79,MATCH($B$10,отд,0)+1) -> Мастер участка | D79: Факт | AK79: =COUNTIF(F79:AJ79,">=4")+COUNTIF(F79:AJ79,"к*") -> 0 | AL79: =IF(ISNA(SUM(ИЗВЛЕЧЬЦЕЛЫЕ(F79:AJ79))),0,SUM(ИЗВЛЕЧЬЦЕЛЫЕ(F79:AJ79))) -> 0 | AN79: =AM79*0.87 -> 0 | AQ79: =COUNTIF(F79:AJ79,"в") -> 0 | AR79: =COUNTIF(F79:AJ79,"о") -> 0 | AS79: =COUNTIF(F79:AJ79,"п") -> 0 | AT79: =COUNTIF(F79:AJ79,"к*") -> 0 | AU79: =COUNTIF(F79:AJ79,"а") -> 0 | AV79: =COUNTIF(F79:AJ79,"б") -> 0
D80: Объект | AQ80: =COUNTIF(F80:AJ80,"бв") -> 0 | AR80: =COUNTIF(F80:AJ80,"бв") -> 0 | AS80: =COUNTIF(F80:AJ80,"а") -> 0 | AT80: =COUNTIF(F80:AJ80,"и") -> 0
A81: 36 | B81: =INDEX(Список!$B$2:$AZ$71,$A81,MATCH($B$10,отд,0)) -> Петренко Юрий Константинович | C81: =INDEX(Список!$B$2:$AZ$71,$A81,MATCH($B$10,отд,0)+1) -> Монтажник по монтажу стальных и железобетонных конструкций 3 разряда | D81: Факт | AK81: =COUNTIF(F81:AJ81,">=4")+COUNTIF(F81:AJ81,"к*") -> 0 | AL81: =IF(ISNA(SUM(ИЗВЛЕЧЬЦЕЛЫЕ(F81:AJ81))),0,SUM(ИЗВЛЕЧЬЦЕЛЫЕ(F81:AJ81))) -> 0 | AN81: =AM81*0.87 -> 0 | AQ81: =COUNTIF(F81:AJ81,"в") -> 0 | AR81: =COUNTIF(F81:AJ81,"о") -> 0 | AS81: =COUNTIF(F81:AJ81,"п") -> 0 | AT81: =COUNTIF(F81:AJ81,"к*") -> 0 | AU81: =COUNTIF(F81:AJ81,"а") -> 0 | AV81: =COUNTIF(F81:AJ81,"б") -> 0
D82: Объект | AQ82: =COUNTIF(F82:AJ82,"бв") -> 0 | AR82: =COUNTIF(F82:AJ82,"бв") -> 0 | AS82: =COUNTIF(F82:AJ82,"а") -> 0 | AT82: =COUNTIF(F82:AJ82,"и") -> 0
A83: 37 | B83: =INDEX(Список!$B$2:$AZ$71,$A83,MATCH($B$10,отд,0)) -> Потехин Дмитрий Иванович | C83: =INDEX(Список!$B$2:$AZ$71,$A83,MATCH($B$10,отд,0)+1) -> Производитель работ (прораб) | D83: Факт | F83: 8 | G83: 8 | H83: 8 | I83: 8 | J83: 8 | K83: 8 | L83: 8 | M83: 8 | N83: 8 | O83: 8 | P83: 8 | Q83: 8 | R83: 8 | S83: 8 | T83: 8 | U83: 8 | AK83: =COUNTIF(F83:AJ83,">=4")+COUNTIF(F83:AJ83,"к*") -> 16 | AL83: =IF(ISNA(SUM(ИЗВЛЕЧЬЦЕЛЫЕ(F83:AJ83))),0,SUM(ИЗВЛЕЧЬЦЕЛЫЕ(F83:AJ83))) -> 128 | AM83: 11147 | AN83: =AM83*0.87 -> 9697.89 | AQ83: =COUNTIF(F83:AJ83,"в") -> 0 | AR83: =COUNTIF(F83:AJ83,"о") -> 0 | AS83: =COUNTIF(F83:AJ83,"п") -> 0 | AT83: =COUNTIF(F83:AJ83,"к*") -> 0 | AU83: =COUNTIF(F83:AJ83,"а") -> 0 | AV83: =COUNTIF(F83:AJ83,"б") -> 0
D84: Объект | AQ84: =COUNTIF(F84:AJ84,"бв") -> 0 | AR84: =COUNTIF(F84:AJ84,"бв") -> 0 | AS84: =COUNTIF(F84:AJ84,"а") -> 0 | AT84: =COUNTIF(F84:AJ84,"и") -> 0
A85: 38 | B85: =INDEX(Список!$B$2:$AZ$71,$A85,MATCH($B$10,отд,0)) -> Розенбах Денис Сергеевич | C85: =INDEX(Список!$B$2:$AZ$71,$A85,MATCH($B$10,отд,0)+1) -> Электромонтажник 3 разряда | D85: Факт | AK85: 16 | AL85: =IF(ISNA(SUM(ИЗВЛЕЧЬЦЕЛЫЕ(F85:AJ85))),0,SUM(ИЗВЛЕЧЬЦЕЛЫЕ(F85:AJ85))) -> 0 | AM85: 5 | AN85: =AM85*0.87 -> 4.35 | AQ85: =COUNTIF(F85:AJ85,"в") -> 0 | AR85: =COUNTIF(F85:AJ85,"о") -> 0 | AS85: =COUNTIF(F85:AJ85,"п") -> 0 | AT85: =COUNTIF(F85:AJ85,"к*") -> 0 | AU85: =COUNTIF(F85:AJ85,"а") -> 0 | AV85: =COUNTIF(F85:AJ85,"б") -> 0
D86: Объект | AQ86: =COUNTIF(F86:AJ86,"бв") -> 0 | AR86: =COUNTIF(F86:AJ86,"бв") -> 0 | AS86: =COUNTIF(F86:AJ86,"а") -> 0 | AT86: =COUNTIF(F86:AJ86,"и") -> 0
A87: 39 | B87: =INDEX(Список!$B$2:$AZ$71,$A87,MATCH($B$10,отд,0)) -> Рытов Игорь Викторович | C87: =INDEX(Список!$B$2:$AZ$71,$A87,MATCH($B$10,отд,0)+1) -> Монтажник по монтажу стальных и железобетонных конструкций 4 разряда | D87: Факт | AK87: =COUNTIF(F87:AJ87,">=4")+COUNTIF(F87:AJ87,"к*") -> 0 | AL87: =IF(ISNA(SUM(ИЗВЛЕЧЬЦЕЛЫЕ(F87:AJ87))),0,SUM(ИЗВЛЕЧЬЦЕЛЫЕ(F87:AJ87))) -> 0 | AN87: =AM87*0.87 -> 0 | AQ87: =COUNTIF(F87:AJ87,"в") -> 0 | AR87: =COUNTIF(F87:AJ87,"о") -> 0 | AS87: =COUNTIF(F87:AJ87,"п") -> 0 | AT87: =COUNTIF(F87:AJ87,"к*") -> 0 | AU87: =COUNTIF(F87:AJ87,"а") -> 0 | AV87: =COUNTIF(F87:AJ87,"б") -> 0
D88: Объект | AQ88: =COUNTIF(F88:AJ88,"бв") -> 0 | AR88: =COUNTIF(F88:AJ88,"бв") -> 0 | AS88: =COUNTIF(F88:AJ88,"а") -> 0 | AT88: =COUNTIF(F88:AJ88,"и") -> 0
A89: 40 | B89: =INDEX(Список!$B$2:$AZ$71,$A89,MATCH($B$10,отд,0)) -> Сергеенко Максим Владимирович | C89: =INDEX(Список!$B$2:$AZ$71,$A89,MATCH($B$10,отд,0)+1) -> Электромонтажник 5 разряда | D89: Факт | AK89: =COUNTIF(F89:AJ89,">=4")+COUNTIF(F89:AJ89,"к*") -> 0 | AL89: =IF(ISNA(SUM(ИЗВЛЕЧЬЦЕЛЫЕ(F89:AJ89))),0,SUM(ИЗВЛЕЧЬЦЕЛЫЕ(F89:AJ89))) -> 0 | AN89: =AM89*0.87 -> 0 | AQ89: =COUNTIF(F89:AJ89,"в") -> 0 | AR89: =COUNTIF(F89:AJ89,"о") -> 0 | AS89: =COUNTIF(F89:AJ89,"п") -> 0 | AT89: =COUNTIF(F89:AJ89,"к*") -> 0 | AU89: =COUNTIF(F89:AJ89,"а") -> 0 | AV89: =COUNTIF(F89:AJ89,"б") -> 0
D90: Объект | AQ90: =COUNTIF(F90:AJ90,"бв") -> 0 | AR90: =COUNTIF(F90:AJ90,"бв") -> 0 | AS90: =COUNTIF(F90:AJ90,"а") -> 0 | AT90: =COUNTIF(F90:AJ90,"и") -> 0
A91: 41 | B91: =INDEX(Список!$B$2:$AZ$71,$A91,MATCH($B$10,отд,0)) -> Симулин Сергей Владимирович | C91: =INDEX(Список!$B$2:$AZ$71,$A91,MATCH($B$10,отд,0)+1) -> Электромонтажник 5 разряда | D91: Факт | AK91: =COUNTIF(F91:AJ91,">=4")+COUNTIF(F91:AJ91,"к*") -> 0 | AL91: =IF(ISNA(SUM(ИЗВЛЕЧЬЦЕЛЫЕ(F91:AJ91))),0,SUM(ИЗВЛЕЧЬЦЕЛЫЕ(F91:AJ91))) -> 0 | AN91: =AM91*0.87 -> 0 | AQ91: =COUNTIF(F91:AJ91,"в") -> 0 | AR91: =COUNTIF(F91:AJ91,"о") -> 0 | AS91: =COUNTIF(F91:AJ91,"п") -> 0 | AT91: =COUNTIF(F91:AJ91,"к*") -> 0 | AU91: =COUNTIF(F91:AJ91,"а") -> 0 | AV91: =COUNTIF(F91:AJ91,"б") -> 0
D92: Объект | AQ92: =COUNTIF(F92:AJ92,"бв") -> 0 | AR92: =COUNTIF(F92:AJ92,"бв") -> 0 | AS92: =COUNTIF(F92:AJ92,"а") -> 0 | AT92: =COUNTIF(F92:AJ92,"и") -> 0
A93: 42 | B93: =INDEX(Список!$B$2:$AZ$71,$A93,MATCH($B$10,отд,0)) -> Сурков Владимир Владимирович | C93: =INDEX(Список!$B$2:$AZ$71,$A93,MATCH($B$10,отд,0)+1) -> Монтажник по монтажу стальных и железобетонных конструкций 3 разряда | D93: Факт | AK93: =COUNTIF(F93:AJ93,">=4")+COUNTIF(F93:AJ93,"к*") -> 0 | AL93: =IF(ISNA(SUM(ИЗВЛЕЧЬЦЕЛЫЕ(F93:AJ93))),0,SUM(ИЗВЛЕЧЬЦЕЛЫЕ(F93:AJ93))) -> 0 | AN93: =AM93*0.87 -> 0 | AQ93: =COUNTIF(F93:AJ93,"в") -> 0 | AR93: =COUNTIF(F93:AJ93,"о") -> 0 | AS93: =COUNTIF(F93:AJ93,"п") -> 0 | AT93: =COUNTIF(F93:AJ93,"к*") -> 0 | AU93: =COUNTIF(F93:AJ93,"а") -> 0 | AV93: =COUNTIF(F93:AJ93,"б") -> 0
D94: Объект | AQ94: =COUNTIF(F94:AJ94,"бв") -> 0 | AR94: =COUNTIF(F94:AJ94,"бв") -> 0 | AS94: =COUNTIF(F94:AJ94,"а") -> 0 | AT94: =COUNTIF(F94:AJ94,"и") -> 0
A95: 43 | B95: =INDEX(Список!$B$2:$AZ$71,$A95,MATCH($B$10,отд,0)) -> Сусляков Сергей Александрович | C95: =INDEX(Список!$B$2:$AZ$71,$A95,MATCH($B$10,отд,0)+1) -> Электромонтажник 3 разряда | D95: Факт | AK95: =COUNTIF(F95:AJ95,">=4")+COUNTIF(F95:AJ95,"к*") -> 0 | AL95: =IF(ISNA(SUM(ИЗВЛЕЧЬЦЕЛЫЕ(F95:AJ95))),0,SUM(ИЗВЛЕЧЬЦЕЛЫЕ(F95:AJ95))) -> 0 | AN95: =AM95*0.87 -> 0 | AQ95: =COUNTIF(F95:AJ95,"в") -> 0 | AR95: =COUNTIF(F95:AJ95,"о") -> 0 | AS95: =COUNTIF(F95:AJ95,"п") -> 0 | AT95: =COUNTIF(F95:AJ95,"к*") -> 0 | AU95: =COUNTIF(F95:AJ95,"а") -> 0 | AV95: =COUNTIF(F95:AJ95,"б") -> 0
D96: Объект | AQ96: =COUNTIF(F96:AJ96,"бв") -> 0 | AR96: =COUNTIF(F96:AJ96,"бв") -> 0 | AS96: =COUNTIF(F96:AJ96,"а") -> 0 | AT96: =COUNTIF(F96:AJ96,"и") -> 0
A97: 44 | B97: =INDEX(Список!$B$2:$AZ$71,$A97,MATCH($B$10,отд,0)) -> Суханов Дмитрий Викторович | C97: =INDEX(Список!$B$2:$AZ$71,$A97,MATCH($B$10,отд,0)+1) -> Электромонтажник 5 разряда | D97: Факт | AK97: =COUNTIF(F97:AJ97,">=4")+COUNTIF(F97:AJ97,"к*") -> 0 | AL97: =IF(ISNA(SUM(ИЗВЛЕЧЬЦЕЛЫЕ(F97:AJ97))),0,SUM(ИЗВЛЕЧЬЦЕЛЫЕ(F97:AJ97))) -> 0 | AN97: =AM97*0.87 -> 0 | AQ97: =COUNTIF(F97:AJ97,"в") -> 0 | AR97: =COUNTIF(F97:AJ97,"о") -> 0 | AS97: =COUNTIF(F97:AJ97,"п") -> 0 | AT97: =COUNTIF(F97:AJ97,"к*") -> 0 | AU97: =COUNTIF(F97:AJ97,"а") -> 0 | AV97: =COUNTIF(F97:AJ97,"б") -> 0
D98: Объект | AQ98: =COUNTIF(F98:AJ98,"бв") -> 0 | AR98: =COUNTIF(F98:AJ98,"бв") -> 0 | AS98: =COUNTIF(F98:AJ98,"а") -> 0 | AT98: =COUNTIF(F98:AJ98,"и") -> 0
A99: 45 | B99: =INDEX(Список!$B$2:$AZ$71,$A99,MATCH($B$10,отд,0)) -> Тамбов Роман Евгеньевич | C99: =INDEX(Список!$B$2:$AZ$71,$A99,MATCH($B$10,отд,0)+1) -> Монтажник по монтажу стальных и железобетонных конструкций 3 разряда | D99: Факт | F99: 8 | G99: 8 | H99: 8 | I99: 8 | J99: 8 | K99: 8 | L99: 8 | M99: 8 | N99: 8 | O99: 8 | P99: 8 | Q99: 12 | R99: 8 | S99: 7 | T99: 8 | U99: 10 | AK99: =COUNTIF(F99:AJ99,">=4")+COUNTIF(F99:AJ99,"к*") -> 16 | AL99: =IF(ISNA(SUM(ИЗВЛЕЧЬЦЕЛЫЕ(F99:AJ99))),0,SUM(ИЗВЛЕЧЬЦЕЛЫЕ(F99:AJ99))) -> 133 | AM99: 11155 | AN99: =AM99*0.87 -> 9704.85 | AQ99: =COUNTIF(F99:AJ99,"в") -> 0 | AR99: =COUNTIF(F99:AJ99,"о") -> 0 | AS99: =COUNTIF(F99:AJ99,"п") -> 0 | AT99: =COUNTIF(F99:AJ99,"к*") -> 0 | AU99: =COUNTIF(F99:AJ99,"а") -> 0 | AV99: =COUNTIF(F99:AJ99,"б") -> 0
D100: Объект | AQ100: =COUNTIF(F100:AJ100,"бв") -> 0 | AR100: =COUNTIF(F100:AJ100,"бв") -> 0 | AS100: =COUNTIF(F100:AJ100,"а") -> 0 | AT100: =COUNTIF(F100:AJ100,"и") -> 0
A101: 46 | B101: =INDEX(Список!$B$2:$AZ$71,$A101,MATCH($B$10,отд,0)) -> Терентьев Василий Владимирович | C101: =INDEX(Список!$B$2:$AZ$71,$A101,MATCH($B$10,отд,0)+1) -> Электромонтажник 5 разряда | D101: Факт | AK101: =COUNTIF(F101:AJ101,">=4")+COUNTIF(F101:AJ101,"к*") -> 0 | AL101: =IF(ISNA(SUM(ИЗВЛЕЧЬЦЕЛЫЕ(F101:AJ101))),0,SUM(ИЗВЛЕЧЬЦЕЛЫЕ(F101:AJ101))) -> 0 | AN101: =AM101*0.87 -> 0 | AQ101: =COUNTIF(F101:AJ101,"в") -> 0 | AR101: =COUNTIF(F101:AJ101,"о") -> 0 | AS101: =COUNTIF(F101:AJ101,"п") -> 0 | AT101: =COUNTIF(F101:AJ101,"к*") -> 0 | AU101: =COUNTIF(F101:AJ101,"а") -> 0 | AV101: =COUNTIF(F101:AJ101,"б") -> 0
D102: Объект | AQ102: =COUNTIF(F102:AJ102,"бв") -> 0 | AR102: =COUNTIF(F102:AJ102,"бв") -> 0 | AS102: =COUNTIF(F102:AJ102,"а") -> 0 | AT102: =COUNTIF(F102:AJ102,"и") -> 0
A103: 47 | B103: =INDEX(Список!$B$2:$AZ$71,$A103,MATCH($B$10,отд,0)) -> Уголев Дмитрий Викторович | C103: =INDEX(Список!$B$2:$AZ$71,$A103,MATCH($B$10,отд,0)+1) -> Электромонтажник 3 разряда | D103: Факт | AK103: =COUNTIF(F103:AJ103,">=4")+COUNTIF(F103:AJ103,"к*") -> 0 | AL103: =IF(ISNA(SUM(ИЗВЛЕЧЬЦЕЛЫЕ(F103:AJ103))),0,SUM(ИЗВЛЕЧЬЦЕЛЫЕ(F103:AJ103))) -> 0 | AN103: =AM103*0.87 -> 0 | AQ103: =COUNTIF(F103:AJ103,"в") -> 0 | AR103: =COUNTIF(F103:AJ103,"о") -> 0 | AS103: =COUNTIF(F103:AJ103,"п") -> 0 | AT103: =COUNTIF(F103:AJ103,"к*") -> 0 | AU103: =COUNTIF(F103:AJ103,"а") -> 0 | AV103: =COUNTIF(F103:AJ103,"б") -> 0
D104: Объект | AQ104: =COUNTIF(F104:AJ104,"бв") -> 0 | AR104: =COUNTIF(F104:AJ104,"бв") -> 0 | AS104: =COUNTIF(F104:AJ104,"а") -> 0 | AT104: =COUNTIF(F104:AJ104,"и") -> 0
A105: 48 | B105: =INDEX(Список!$B$2:$AZ$71,$A105,MATCH($B$10,отд,0)) -> Шестаков Андрей Иванович | C105: =INDEX(Список!$B$2:$AZ$71,$A105,MATCH($B$10,отд,0)+1) -> Электромонтажник 4 разряда | D105: Факт | AK105: =COUNTIF(F105:AJ105,">=4")+COUNTIF(F105:AJ105,"к*") -> 0 | AL105: =IF(ISNA(SUM(ИЗВЛЕЧЬЦЕЛЫЕ(F105:AJ105))),0,SUM(ИЗВЛЕЧЬЦЕЛЫЕ(F105:AJ105))) -> 0 | AN105: =AM105*0.87 -> 0 | AQ105: =COUNTIF(F105:AJ105,"в") -> 0 | AR105: =COUNTIF(F105:AJ105,"о") -> 0 | AS105: =COUNTIF(F105:AJ105,"п") -> 0 | AT105: =COUNTIF(F105:AJ105,"к*") -> 0 | AU105: =COUNTIF(F105:AJ105,"а") -> 0 | AV105: =COUNTIF(F105:AJ105,"б") -> 0
D106: Объект | AQ106: =COUNTIF(F106:AJ106,"бв") -> 0 | AR106: =COUNTIF(F106:AJ106,"бв") -> 0 | AS106: =COUNTIF(F106:AJ106,"а") -> 0 | AT106: =COUNTIF(F106:AJ106,"и") -> 0
A107: 49 | B107: =INDEX(Список!$B$2:$AZ$71,$A107,MATCH($B$10,отд,0)) -> Шмыков Виктор Васильевич | C107: =INDEX(Список!$B$2:$AZ$71,$A107,MATCH($B$10,отд,0)+1) -> Электромонтажник 5 разряда | D107: Факт | AK107: =COUNTIF(F107:AJ107,">=4")+COUNTIF(F107:AJ107,"к*") -> 0 | AL107: =IF(ISNA(SUM(ИЗВЛЕЧЬЦЕЛЫЕ(F107:AJ107))),0,SUM(ИЗВЛЕЧЬЦЕЛЫЕ(F107:AJ107))) -> 0 | AN107: =AM107*0.87 -> 0 | AQ107: =COUNTIF(F107:AJ107,"в") -> 0 | AR107: =COUNTIF(F107:AJ107,"о") -> 0 | AS107: =COUNTIF(F107:AJ107,"п") -> 0 | AT107: =COUNTIF(F107:AJ107,"к*") -> 0 | AU107: =COUNTIF(F107:AJ107,"а") -> 0 | AV107: =COUNTIF(F107:AJ107,"б") -> 0
D108: Объект | AQ108: =COUNTIF(F108:AJ108,"бв") -> 0 | AR108: =COUNTIF(F108:AJ108,"бв") -> 0 | AS108: =COUNTIF(F108:AJ108,"а") -> 0 | AT108: =COUNTIF(F108:AJ108,"и") -> 0
A109: 50 | B109: =INDEX(Список!$B$2:$AZ$71,$A109,MATCH($B$10,отд,0)) -> Эндерс Валерий Давыдович | C109: =INDEX(Список!$B$2:$AZ$71,$A109,MATCH($B$10,отд,0)+1) -> Электромонтажник 4 разряда | D109: Факт | AK109: =COUNTIF(F109:AJ109,">=4")+COUNTIF(F109:AJ109,"к*") -> 0 | AL109: =IF(ISNA(SUM(ИЗВЛЕЧЬЦЕЛЫЕ(F109:AJ109))),0,SUM(ИЗВЛЕЧЬЦЕЛЫЕ(F109:AJ109))) -> 0 | AN109: =AM109*0.87 -> 0 | AQ109: =COUNTIF(F109:AJ109,"в") -> 0 | AR109: =COUNTIF(F109:AJ109,"о") -> 0 | AS109: =COUNTIF(F109:AJ109,"п") -> 0 | AT109: =COUNTIF(F109:AJ109,"к*") -> 0 | AU109: =COUNTIF(F109:AJ109,"а") -> 0 | AV109: =COUNTIF(F109:AJ109,"б") -> 0
D110: Объект | AQ110: =COUNTIF(F110:AJ110,"бв") -> 0 | AR110: =COUNTIF(F110:AJ110,"бв") -> 0 | AS110: =COUNTIF(F110:AJ110,"а") -> 0 | AT110: =COUNTIF(F110:AJ110,"и") -> 0
A111: 51 | B111: =INDEX(Список!$B$2:$AZ$71,$A111,MATCH($B$10,отд,0)) -> Янкин Ярослав Александрович | C111: =INDEX(Список!$B$2:$AZ$71,$A111,MATCH($B$10,отд,0)+1) -> Электромонтажник 3 разряда | D111: Факт | AK111: =COUNTIF(F111:AJ111,">=4")+COUNTIF(F111:AJ111,"к*") -> 0 | AL111: =IF(ISNA(SUM(ИЗВЛЕЧЬЦЕЛЫЕ(F111:AJ111))),0,SUM(ИЗВЛЕЧЬЦЕЛЫЕ(F111:AJ111))) -> 0 | AN111: =AM111*0.87 -> 0 | AQ111: =COUNTIF(F111:AJ111,"в") -> 0 | AR111: =COUNTIF(F111:AJ111,"о") -> 0 | AS111: =COUNTIF(F111:AJ111,"п") -> 0 | AT111: =COUNTIF(F111:AJ111,"к*") -> 0 | AU111: =COUNTIF(F111:AJ111,"а") -> 0 | AV111: =COUNTIF(F111:AJ111,"б") -> 0
D112: Объект | AQ112: =COUNTIF(F112:AJ112,"бв") -> 0 | AR112: =COUNTIF(F112:AJ112,"бв") -> 0 | AS112: =COUNTIF(F112:AJ112,"а") -> 0 | AT112: =COUNTIF(F112:AJ112,"и") -> 0
A113: 52 | B113: =INDEX(Список!$B$2:$AZ$71,$A113,MATCH($B$10,отд,0)) -> 0 | C113: =INDEX(Список!$B$2:$AZ$71,$A113,MATCH($B$10,отд,0)+1) -> 0 | D113: Факт | AK113: =COUNTIF(F113:AJ113,">=4")+COUNTIF(F113:AJ113,"к*") -> 0 | AL113: =IF(ISNA(SUM(ИЗВЛЕЧЬЦЕЛЫЕ(F113:AJ113))),0,SUM(ИЗВЛЕЧЬЦЕЛЫЕ(F113:AJ113))) -> 0 | AN113: =AM113*0.87 -> 0 | AQ113: =COUNTIF(F113:AJ113,"в") -> 0 | AR113: =COUNTIF(F113:AJ113,"о") -> 0 | AS113: =COUNTIF(F113:AJ113,"п") -> 0 | AT113: =COUNTIF(F113:AJ113,"к*") -> 0 | AU113: =COUNTIF(F113:AJ113,"а") -> 0 | AV113: =COUNTIF(F113:AJ113,"б") -> 0
D114: Объект | AQ114: =COUNTIF(F114:AJ114,"бв") -> 0 | AR114: =COUNTIF(F114:AJ114,"бв") -> 0 | AS114: =COUNTIF(F114:AJ114,"а") -> 0 | AT114: =COUNTIF(F114:AJ114,"и") -> 0
A115: 53 | B115: =INDEX(Список!$B$2:$AZ$71,$A115,MATCH($B$10,отд,0)) -> 0 | C115: =INDEX(Список!$B$2:$AZ$71,$A115,MATCH($B$10,отд,0)+1) -> 0 | D115: Факт | AK115: =COUNTIF(F115:AJ115,">=4")+COUNTIF(F115:AJ115,"к*") -> 0 | AL115: =IF(ISNA(SUM(ИЗВЛЕЧЬЦЕЛЫЕ(F115:AJ115))),0,SUM(ИЗВЛЕЧЬЦЕЛЫЕ(F115:AJ115))) -> 0 | AN115: =AM115*0.87 -> 0 | AQ115: =COUNTIF(F115:AJ115,"в") -> 0 | AR115: =COUNTIF(F115:AJ115,"о") -> 0 | AS115: =COUNTIF(F115:AJ115,"п") -> 0 | AT115: =COUNTIF(F115:AJ115,"к*") -> 0 | AU115: =COUNTIF(F115:AJ115,"а") -> 0 | AV115: =COUNTIF(F115:AJ115,"б") -> 0
D116: Объект | AQ116: =COUNTIF(F116:AJ116,"бв") -> 0 | AR116: =COUNTIF(F116:AJ116,"бв") -> 0 | AS116: =COUNTIF(F116:AJ116,"а") -> 0 | AT116: =COUNTIF(F116:AJ116,"и") -> 0
A117: 54 | B117: =INDEX(Список!$B$2:$AZ$71,$A117,MATCH($B$10,отд,0)) -> 0 | C117: =INDEX(Список!$B$2:$AZ$71,$A117,MATCH($B$10,отд,0)+1) -> 0 | D117: Факт | AK117: =COUNTIF(F117:AJ117,">=4")+COUNTIF(F117:AJ117,"к*") -> 0 | AL117: =IF(ISNA(SUM(ИЗВЛЕЧЬЦЕЛЫЕ(F117:AJ117))),0,SUM(ИЗВЛЕЧЬЦЕЛЫЕ(F117:AJ117))) -> 0 | AN117: =AM117*0.87 -> 0 | AQ117: =COUNTIF(F117:AJ117,"в") -> 0 | AR117: =COUNTIF(F117:AJ117,"о") -> 0 | AS117: =COUNTIF(F117:AJ117,"п") -> 0 | AT117: =COUNTIF(F117:AJ117,"к*") -> 0 | AU117: =COUNTIF(F117:AJ117,"а") -> 0 | AV117: =COUNTIF(F117:AJ117,"б") -> 0
D118: Объект | AQ118: =COUNTIF(F118:AJ118,"бв") -> 0 | AR118: =COUNTIF(F118:AJ118,"бв") -> 0 | AS118: =COUNTIF(F118:AJ118,"а") -> 0 | AT118: =COUNTIF(F118:AJ118,"и") -> 0
A119: 55 | B119: =INDEX(Список!$B$2:$AZ$71,$A119,MATCH($B$10,отд,0)) -> 0 | C119: =INDEX(Список!$B$2:$AZ$71,$A119,MATCH($B$10,отд,0)+1) -> 0 | D119: Факт | AK119: =COUNTIF(F119:AJ119,">=4")+COUNTIF(F119:AJ119,"к*") -> 0 | AL119: =IF(ISNA(SUM(ИЗВЛЕЧЬЦЕЛЫЕ(F119:AJ119))),0,SUM(ИЗВЛЕЧЬЦЕЛЫЕ(F119:AJ119))) -> 0 | AN119: =AM119*0.87 -> 0 | AQ119: =COUNTIF(F119:AJ119,"в") -> 0 | AR119: =COUNTIF(F119:AJ119,"о") -> 0 | AS119: =COUNTIF(F119:AJ119,"п") -> 0 | AT119: =COUNTIF(F119:AJ119,"к*") -> 0 | AU119: =COUNTIF(F119:AJ119,"а") -> 0 | AV119: =COUNTIF(F119:AJ119,"б") -> 0
D120: Объект | AQ120: =COUNTIF(F120:AJ120,"бв") -> 0 | AR120: =COUNTIF(F120:AJ120,"бв") -> 0 | AS120: =COUNTIF(F120:AJ120,"а") -> 0 | AT120: =COUNTIF(F120:AJ120,"и") -> 0
A121: 56 | B121: =INDEX(Список!$B$2:$AZ$71,$A121,MATCH($B$10,отд,0)) -> 0 | C121: =INDEX(Список!$B$2:$AZ$71,$A121,MATCH($B$10,отд,0)+1) -> 0 | D121: Факт | AK121: =COUNTIF(F121:AJ121,">=4")+COUNTIF(F121:AJ121,"к*") -> 0 | AL121: =IF(ISNA(SUM(ИЗВЛЕЧЬЦЕЛЫЕ(F121:AJ121))),0,SUM(ИЗВЛЕЧЬЦЕЛЫЕ(F121:AJ121))) -> 0 | AN121: =AM121*0.87 -> 0 | AQ121: =COUNTIF(F121:AJ121,"в") -> 0 | AR121: =COUNTIF(F121:AJ121,"о") -> 0 | AS121: =COUNTIF(F121:AJ121,"п") -> 0 | AT121: =COUNTIF(F121:AJ121,"к*") -> 0 | AU121: =COUNTIF(F121:AJ121,"а") -> 0 | AV121: =COUNTIF(F121:AJ121,"б") -> 0
D122: Объект | AQ122: =COUNTIF(F122:AJ122,"бв") -> 0 | AR122: =COUNTIF(F122:AJ122,"бв") -> 0 | AS122: =COUNTIF(F122:AJ122,"а") -> 0 | AT122: =COUNTIF(F122:AJ122,"и") -> 0
A123: 57 | B123: =INDEX(Список!$B$2:$AZ$71,$A123,MATCH($B$10,отд,0)) -> 0 | C123: =INDEX(Список!$B$2:$AZ$71,$A123,MATCH($B$10,отд,0)+1) -> 0 | D123: Факт | AK123: =COUNTIF(F123:AJ123,">=4")+COUNTIF(F123:AJ123,"к*") -> 0 | AL123: =IF(ISNA(SUM(ИЗВЛЕЧЬЦЕЛЫЕ(F123:AJ123))),0,SUM(ИЗВЛЕЧЬЦЕЛЫЕ(F123:AJ123))) -> 0 | AN123: =AM123*0.87 -> 0 | AQ123: =COUNTIF(F123:AJ123,"в") -> 0 | AR123: =COUNTIF(F123:AJ123,"о") -> 0 | AS123: =COUNTIF(F123:AJ123,"п") -> 0 | AT123: =COUNTIF(F123:AJ123,"к*") -> 0 | AU123: =COUNTIF(F123:AJ123,"а") -> 0 | AV123: =COUNTIF(F123:AJ123,"б") -> 0
D124: Объект | AQ124: =COUNTIF(F124:AJ124,"бв") -> 0 | AR124: =COUNTIF(F124:AJ124,"бв") -> 0 | AS124: =COUNTIF(F124:AJ124,"а") -> 0 | AT124: =COUNTIF(F124:AJ124,"и") -> 0
A125: 58 | B125: =INDEX(Список!$B$2:$AZ$71,$A125,MATCH($B$10,отд,0)) -> 0 | C125: =INDEX(Список!$B$2:$AZ$71,$A125,MATCH($B$10,отд,0)+1) -> 0 | D125: Факт | AK125: =COUNTIF(F125:AJ125,">=4")+COUNTIF(F125:AJ125,"к*") -> 0 | AL125: =IF(ISNA(SUM(ИЗВЛЕЧЬЦЕЛЫЕ(F125:AJ125))),0,SUM(ИЗВЛЕЧЬЦЕЛЫЕ(F125:AJ125))) -> 0 | AN125: =AM125*0.87 -> 0 | AQ125: =COUNTIF(F125:AJ125,"в") -> 0 | AR125: =COUNTIF(F125:AJ125,"о") -> 0 | AS125: =COUNTIF(F125:AJ125,"п") -> 0 | AT125: =COUNTIF(F125:AJ125,"к*") -> 0 | AU125: =COUNTIF(F125:AJ125,"а") -> 0 | AV125: =COUNTIF(F125:AJ125,"б") -> 0
D126: Объект | AQ126: =COUNTIF(F126:AJ126,"бв") -> 0 | AR126: =COUNTIF(F126:AJ126,"бв") -> 0 | AS126: =COUNTIF(F126:AJ126,"а") -> 0 | AT126: =COUNTIF(F126:AJ126,"и") -> 0
A127: 59 | B127: =INDEX(Список!$B$2:$AZ$71,$A127,MATCH($B$10,отд,0)) -> 0 | C127: =INDEX(Список!$B$2:$AZ$71,$A127,MATCH($B$10,отд,0)+1) -> 0 | D127: Факт | AK127: =COUNTIF(F127:AJ127,">=4")+COUNTIF(F127:AJ127,"к*") -> 0 | AL127: =IF(ISNA(SUM(ИЗВЛЕЧЬЦЕЛЫЕ(F127:AJ127))),0,SUM(ИЗВЛЕЧЬЦЕЛЫЕ(F127:AJ127))) -> 0 | AN127: =AM127*0.87 -> 0 | AQ127: =COUNTIF(F127:AJ127,"в") -> 0 | AR127: =COUNTIF(F127:AJ127,"о") -> 0 | AS127: =COUNTIF(F127:AJ127,"п") -> 0 | AT127: =COUNTIF(F127:AJ127,"к*") -> 0 | AU127: =COUNTIF(F127:AJ127,"а") -> 0 | AV127: =COUNTIF(F127:AJ127,"б") -> 0
D128: Объект | AQ128: =COUNTIF(F128:AJ128,"бв") -> 0 | AR128: =COUNTIF(F128:AJ128,"бв") -> 0 | AS128: =COUNTIF(F128:AJ128,"а") -> 0 | AT128: =COUNTIF(F128:AJ128,"и") -> 0
B133: Статистика:
B134: Количество рабочих дней в месяце | F134: =NETWORKDAYS(F7,EOMONTH(F7,0),Праздники) -> 16
B135: Численность электромонтажников (по табелю): | F135: =COUNTIF(C11:C128,"*монтажник*") -> 43
B136: Зарплата всех электромонтажников | F136: =SUMIF(C11:C128,"*монтажник*",AN11:AN128) -> 48383.31
B137: Численность электромонтажников отработавших полный месяц | F137: =COUNTIFS(C11:C128,"*монтажник*",AK11:AK128,F134) -> 3
B138: Заработная плата электромонтажников отработавших полный месяц | F138: =SUMIFS(AN11:AN128,C11:C128,"*монтажник*",AK11:AK128,F134) -> 19375.77
B139: Средняя зарплата одного электромонтажника отработавшего полный месяц | F139: =F138/F137 -> 6458.59
B140: Количество человеко-часов за полный месяц | F140: =SUMIFS(AL11:AL128,C11:C128,"*монтажник*",AK11:AK128,F134) -> 261
B141: Стоимость 1 чел/час за полный месяц | F141: =F138/F140 -> 74.23666667
B142: Средняя продолжительность рабочего дня за полный месяц | F142: =F140/(F137*F134) -> 5.4375
B143: Интервал трудозатратности, час | F143: ="От "&MIN(AL11:AL128)&" до "&MAX(AL11:AL128) -> От 0 до 133
B144: Минимальная зарплата за полный месяц | F144: =MIN(IF(ISNUMBER(SEARCH("Электромонтажник",C$11:C$128))*(AK$11:AK$128=NETWORKDAYS(F7,EOMONTH(F7,0),Праздники)),AM$11:AM$128)) -> 5
F145: =INDEX(B$1:B$128,MIN(IF(ISNUMBER(SEARCH("Электромонтажник",C$11:C$128))*(AK$11:AK$128=NETWORKDAYS(F7,EOMONTH(F7,0),Праздники))*(F144=AM$11:AM$128),ROW(C$11:C$128)))) -> Розенбах Денис Сергеевич

Sheet Лист1
A1: =INDEX(Список!$B$1:$AZ$1,(ROW()-1)*2+1) -> УПРАВЛЕНИЕ
A2: =INDEX(Список!$B$1:$AZ$1,(ROW()-1)*2+1) -> Отдел управления персоналом | C2: Праздники | E2: 2 | F2: 3 | G2: 4 | H2: 5 | I2: 6 | J2: 7 | K2: 8 | L2: 9 | M2: 10 | N2: 11 | O2: 12 | P2: 13 | Q2: 14 | R2: 15 | S2: 16 | T2: 17 | U2: 18 | V2: 19 | W2: 20 | X2: 21 | Y2: 22 | Z2: 23 | AA2: 24 | AB2: 25 | AC2: 26 | AD2: 27 | AE2: 28 | AF2: 29 | AG2: 30 | AH2: 31
A3: =INDEX(Список!$B$1:$AZ$1,(ROW()-1)*2+1) -> БУХГАЛТЕРИЯ | C3: 2012-01-01
A4: =INDEX(Список!$B$1:$AZ$1,(ROW()-1)*2+1) -> Отдел материально-технического снабжения | C4: 2012-01-02
A5: =INDEX(Список!$B$1:$AZ$1,(ROW()-1)*2+1) -> Отдел автоматизации систем управления | C5: 2012-01-03
A6: =INDEX(Список!$B$1:$AZ$1,(ROW()-1)*2+1) -> Производственно-технический отдел | C6: 2012-01-04
A7: =INDEX(Список!$B$1:$AZ$1,(ROW()-1)*2+1) -> Сметно-договорной отдел | C7: 2012-01-05
A8: =INDEX(Список!$B$1:$AZ$1,(ROW()-1)*2+1) -> Автотранспортный участок | C8: 2012-01-06
A9: =INDEX(Список!$B$1:$AZ$1,(ROW()-1)*2+1) -> Отдел охраны труда и техники безопасности | C9: 2012-01-07
A10: =INDEX(Список!$B$1:$AZ$1,(ROW()-1)*2+1) -> Административно-хозяйственный участок | C10: 2012-01-09
A11: =INDEX(Список!$B$1:$AZ$1,(ROW()-1)*2+1) -> Томский электромонтажный участок | C11: 2012-02-23
A12: =INDEX(Список!$B$1:$AZ$1,(ROW()-1)*2+1) -> Б электромонтажный участок | C12: 2012-03-08
A13: =INDEX(Список!$B$1:$AZ$1,(ROW()-1)*2+1) -> 0 | C13: 2012-03-09
A14: =INDEX(Список!$B$1:$AZ$1,(ROW()-1)*2+1) -> 0 | C14: 2012-04-30
A15: =INDEX(Список!$B$1:$AZ$1,(ROW()-1)*2+1) -> 0 | C15: 2012-05-01
A16: =INDEX(Список!$B$1:$AZ$1,(ROW()-1)*2+1) -> 0 | C16: 2012-05-07
A17: =INDEX(Список!$B$1:$AZ$1,(ROW()-1)*2+1) -> 0 | C17: 2012-05-08
A18: =INDEX(Список!$B$1:$AZ$1,(ROW()-1)*2+1) -> 0 | C18: 2012-05-09
A19: =INDEX(Список!$B$1:$AZ$1,(ROW()-1)*2+1) -> 0 | C19: 2012-06-11
A20: =INDEX(Список!$B$1:$AZ$1,(ROW()-1)*2+1) -> 0 | C20: 2012-06-12
A21: =INDEX(Список!$B$1:$AZ$1,(ROW()-1)*2+1) -> 0 | C21: 2012-11-04
A22: =INDEX(Список!$B$1:$AZ$1,(ROW()-1)*2+1) -> 0 | C22: 2012-11-05
A23: =INDEX(Список!$B$1:$AZ$1,(ROW()-1)*2+1) -> 0 | C23: 2012-12-31
A24: =INDEX(Список!$B$1:$AZ$1,(ROW()-1)*2+1) -> 0
